Cogmind - Beta 17 @@@ ROGUE MODE // 2026.08.22 @ 18:42:02 Player: Petvaria Result: Escaped! Performance ------------- Evolutions (9) 4500 Regions Visited (27) 5400 Robots Destroyed (786) 3930 Value Destroyed (45816) 45816 Prototype IDs (369) 7380 Alien Tech Used (4) 800 Bonus (54215) 54215 TOTAL SCORE: 122041 Bonus ------- Triggered High Security 1000 High Alert Combat Kills 25612 Follower Combat Kills 750 Hunted by Unchained 500 Network Hubs Disabled 200 Met Data Miner 300 Used Data Conduit 3000 Met Zhirov 300 Built Enhanced Grunts 300 A7 Reached Mainframe 300 Met R17 at Cetus 500 Scanned by Researcher 500 Pursued by Intercept 1000 Acquired SGEMP 2000 Delivered SGEMP 2000 Destroyed MAIN.C Guards 500 Met MAIN.C 5000 Destroyed MAIN.C Shell 5000 Zhirov Destroyed MAIN.C 3000 Win 3000 Friendly Fire -547 Cogmind --------- Core Integrity 1201/1600 Matter 290/300 Energy 2213/2239 System Corruption 0% Temperature Cool (20) Movement Walking (72) Location To Epsilon Eridani Parts ------- > --- POWER (4) -------- ZP-Antimatter Reactor > --- PROPULSION (6) --- HC-Biometal Exoskeleton > --- UTILITY (10) ----- Armored Scrap Engine Concept Phasing Heat Sink Experimental Cooling System Concept Antigrav Storage Unit Experimental Core Analyzer SHELL Armor Experimental System Purifier > --- WEAPON (5) ------- Cooled Nova Cannon Graviton Cannon Hvy. Energy Phase Construct/C > --- INVENTORY (25) --- Zero-point Reactor Zero-point Reactor Zero-point Reactor Experimental Coolant Injector Concept Chromion Battery (800) Experimental Matter Compressor (500) Concept NT7 Matterbank (750) Concept Networked Targeting System Advanced Particle Accelerator Experimental Kinecellerator Improved Weapon Cycler Improved Transmission Jammer Concept Reaction Jets Concept Phase Shift Module Concept Phase Shift Module Graphene Brace AEGIS Remote Shield Experimental System Shield Concept Matter Streamer Concept Impact Drone Bay (6/6) Hypervelocity Multirail Concept Arcsight Missile Launcher Peak State ------------ > --- POWER ------------ ZP-Antimatter Reactor > --- PROPULSION ------- HC-Biometal Exoskeleton > --- UTILITY ---------- Armored Scrap Engine Concept Phasing Heat Sink Concept Antigrav Storage Unit Experimental Core Analyzer Advanced Particle Accelerator SHELL Armor Experimental System Purifier > --- WEAPON ----------- Enhanced Nova Cannon Cooled Nova Cannon Hvy. Energy Phase Construct/C > --- INVENTORY -------- Zero-point Reactor Zero-point Reactor Zero-point Reactor Experimental Cooling System Experimental Coolant Injector Concept Chromion Battery Experimental Matter Compressor Concept NT7 Matterbank Concept Networked Targeting System Experimental Core Analyzer Experimental Kinecellerator Improved Weapon Cycler Improved Transmission Jammer Concept Reaction Jets Concept Phase Shift Module Concept Phase Shift Module Graphene Brace AEGIS Remote Shield Experimental System Shield Concept Matter Streamer Concept Impact Drone Bay Hypervelocity Multirail Gamma Bomb Array Concept Arcsight Missile Launcher [Rating: 265] Favorites ----------- Power Constructs Engine Heavy Ion Engine Power Core Reinforced Fission Core Reactor Constructs Propulsion Constructs Treads Light Treads Leg Constructs Utility Armored Scrap Engine Device Armored Scrap Engine Storage Huge Storage Unit Processor Core Analyzer Hackware Hacking Suite Protection SHELL Armor Weapon Constructs Energy Gun Medium Laser Energy Cannon Constructs Ballistic Gun Improved Assault Rifle Ballistic Cannon Constructs Launcher Gamma Bomb Array Special Weapon Mining Laser Impact Weapon Hammer Build | -11 -10 -9 -9 -9 -7 -7 -7 -7 -6 -6 -5 -5 -5 -5 -4 -4 -4 -4 -4 -4 -3 -3 -3 -2 -2 -1 -1 ------- Run | Yrd Mat Mat Sto Rec Fac Low Low Dat Pro Fac Fac Upp Upp Zhi Pro Fac Ext Cet Arc Hub Res Qua Frg Res Tes Acc Com Slots Evolved 18 | . . 2 . . 4 . . . . 2 2 . . . . 2 . . . . 2 . . 2 . 2 . Power 3 | . . . . . . . . . . 1 . . . . . . . . . . . . . 1 . 1 . Propulsion 4 | . . 1 . . 1 . . . . . 1 . . . . 1 . . . . . . . . . . . Utility 8 | . . 1 . . 2 . . . . 1 . . . . . 1 . . . . 2 . . 1 . . . Weapon 3 | . . . . . 1 . . . . . 1 . . . . . . . . . . . . . . 1 . Parts Attached 196 | 7 15 23 24 6 10 1 . 3 3 8 7 3 1 1 6 4 7 2 . 1 2 . 34 8 5 1 14 Power 27 | 1 3 2 1 . 1 1 . 2 . 1 3 1 . 1 1 . 3 2 . . . . 1 2 . 1 . Engine 11 | 1 3 2 1 . . 1 . 1 . . 1 . . 1 . . . . . . . . . . . . . Core 2 | . . . . . 1 . . . . . . 1 . . . . . . . . . . . . . . . Reactor 14 | . . . . . . . . 1 . 1 2 . . . 1 . 3 2 . . . . 1 2 . 1 . Propulsion 30 | 2 2 9 12 2 . . . . . . . . . . . . . . . . . . . 2 1 . . Treads 27 | 2 2 9 12 2 . . . . . . . . . . . . . . . . . . . . . . . Leg 3 | . . . . . . . . . . . . . . . . . . . . . . . . 2 1 . . Wheel . | . . . . . . . . . . . . . . . . . . . . . . . . . . . . Hover . | . . . . . . . . . . . . . . . . . . . . . . . . . . . . Flight . | . . . . . . . . . . . . . . . . . . . . . . . . . . . . Utility 98 | 2 4 5 5 2 8 . . 1 3 7 3 2 . . 3 4 4 . . 1 2 . 29 3 2 . 8 Device 53 | 1 2 1 1 1 4 . . . 2 5 3 2 . . 3 1 1 . . 1 2 . 16 2 . . 5 Storage 11 | 1 2 . 1 . 2 . . 1 . 1 . . . . . 1 . . . . . . 2 . . . . Processor 10 | . . 1 . . . . . . . 1 . . . . . . 1 . . . . . 3 . 1 . 3 Hackware 2 | . . 1 . . 1 . . . . . . . . . . . . . . . . . . . . . . Protection 22 | . . 2 3 1 1 . . . 1 . . . . . . 2 2 . . . . . 8 1 1 . . Artifact . | . . . . . . . . . . . . . . . . . . . . . . . . . . . . Weapon 41 | 2 6 7 6 2 1 . . . . . 1 . 1 . 2 . . . . . . . 4 1 2 . 6 Energy Gun 9 | 1 1 3 1 . . . . . . . . . 1 . . . . . . . . . 1 . 1 . . Energy Cannon 10 | . 1 1 2 2 . . . . . . . . . . 1 . . . . . . . 1 . . . 2 Ballistic Gun 13 | 1 1 2 3 . 1 . . . . . . . . . 1 . . . . . . . 1 . 1 . 2 Ballistic Cannon 1 | . . . . . . . . . . . . . . . . . . . . . . . . . . . 1 Launcher 6 | . 1 1 . . . . . . . . 1 . . . . . . . . . . . 1 1 . . 1 Special Weapon 1 | . 1 . . . . . . . . . . . . . . . . . . . . . . . . . . Impact Weapon 1 | . 1 . . . . . . . . . . . . . . . . . . . . . . . . . . Slashing Weapon . | . . . . . . . . . . . . . . . . . . . . . . . . . . . . Piercing Weapon . | . . . . . . . . . . . . . . . . . . . . . . . . . . . . Special Melee Weapon . | . . . . . . . . . . . . . . . . . . . . . . . . . . . . Unidentified Prototypes 20 | . 2 2 2 1 1 . . . . . . . . 1 . . . . . 1 . 1 6 . 3 . . Corrupted Parts 10 | . 1 . . . . . . . . . . . . . . . . . . . . . 1 . . . 8 System Corruption 53 | . 1 . . . . . . . . . . . . . . . . . . . . . 8 . . . 44 Parts Lost 32 | . 2 4 . . 1 . . 2 6 . 1 2 . . . . 2 . . . . 1 7 1 1 1 1 Power 7 | . . 1 . . . . . 1 1 . . 1 . . . . 1 . . . . . 1 1 . . . Propulsion 4 | . 1 1 . . . . . . 1 . . . . . . . 1 . . . . . . . . . . Utility 18 | . 1 1 . . 1 . . 1 2 . 1 1 . . . . . . . . . 1 6 . 1 1 1 Weapon 3 | . . 1 . . . . . . 2 . . . . . . . . . . . . . . . . . . Highest Loss Streak 4 | . 1 1 . . 1 . . 2 4 . 1 1 . . . . 1 . . . . 1 2 1 1 1 1 To Critical Strikes 1 | . . . . . . . . . . . . . . . . . 1 . . . . . . . . . . Average Backups 21 | 4 11 14 14 14 19 23 23 23 21 21 23 23 24 24 24 25 24 24 24 24 24 24 24 23 22 22 23 Power 1 | . 1 . 1 1 2 2 3 2 1 1 . 1 . 1 1 1 1 1 1 . 1 1 . . 2 1 2 Propulsion 1 | 2 2 3 5 5 3 4 4 3 3 3 . . . . . . . . . . . . . . . . . Utility 14 | . 3 4 2 3 8 13 14 14 16 16 19 19 20 20 20 20 20 20 20 19 17 15 18 18 15 16 17 Weapon 3 | . 5 6 5 4 5 2 2 2 . 1 2 3 2 3 2 3 2 2 2 3 4 4 1 3 2 3 2 Tool/Special . | . . . . . . . . . . . . . . . . . . . . . . . . . . . . Unused Backups 126 | . 4 8 4 2 18 . 1 5 . 2 15 4 2 2 4 2 6 . 2 4 . 2 15 4 4 . 16 Power 16 | . . . . . . . . 1 . . 1 . 1 . . . 1 . . 1 . . 2 2 1 . 6 Propulsion 25 | . 3 2 2 1 4 . . 3 . . 4 . . 1 2 . . . . . . . . . 1 . 2 Utility 39 | . . 1 1 . 3 . . . . 1 4 . 1 1 . 1 4 . 1 2 . 1 8 1 1 . 8 Weapon 45 | . 1 5 1 1 11 . 1 1 . 1 6 4 . . 2 1 1 . 1 1 . . 5 1 1 . . Tool/Special 1 | . . . . . . . . . . . . . . . . . . . . . . 1 . . . . . Average Slot Usage (%) 57 | . 98 99 99 75 54 53 53 52 48 57 51 52 52 51 52 51 48 43 42 41 46 48 53 56 51 47 45 Engine 2 | . 13 10 10 11 . . . . 1 6 3 . . . 2 . . . . . . . . . . . . Core 1 | . . . . . 6 6 7 3 . . . 2 5 3 . . . . . . . . . . . . . Reactor 3 | . . . . . . . . 3 5 4 6 8 4 5 7 10 9 6 5 5 4 4 4 9 4 7 4 Treads 6 | . 28 32 32 17 . 7 7 7 7 6 . 2 2 . . . 2 . . . . . . . . 4 1 Leg 2 | . . . . . 6 . . . . . 4 . 2 5 5 4 . 5 5 5 3 4 3 7 7 4 2 Device 15 | . 12 10 10 11 17 22 23 18 11 22 17 16 17 17 16 18 12 10 10 9 18 21 21 16 18 12 14 Storage 6 | . 14 11 11 11 7 7 7 10 8 6 5 5 5 5 5 5 5 5 5 5 4 4 4 8 8 4 4 Processor 3 | . . . . . . . . . . 2 5 5 5 5 5 5 5 5 5 5 4 4 4 4 1 4 5 Protection 3 | . . 8 8 4 4 . . . 4 . . . . . . 1 4 5 5 5 4 2 4 3 4 7 4 Energy Cannon 4 | . 2 9 10 6 6 4 . 1 5 . 4 4 5 5 3 1 1 . . . 4 4 3 . 4 4 6 Ballistic Gun 1 | . 11 8 10 4 1 . . . . . . . . . . . . . . . . . . . . . 1 Ballistic Cannon 1 | . . . . 3 . 2 7 5 . 3 . . . . 1 3 3 5 5 4 . . 1 3 . . 1 Peak Build Rating 265 | 8 13 21 25 38 63 68 70 76 76 73 88 91 93 102 109 112 113 114 114 127 142 148 229 248 247 233 265 Average Rating 123 | 5 10 18 21 28 53 64 68 71 69 68 79 84 89 96 103 111 107 108 113 115 136 141 186 232 230 227 243 On Entrance 96 | . 8 13 21 18 38 63 68 68 76 63 72 88 83 93 102 105 112 109 114 114 127 137 148 185 230 226 228 Avg Prop Armor Cover (%) 5 | . . 7 . 11 . . . . . . . . . . . . . . . . . . . . 1 1 1 Naked Turns . | . . . . . . . . . . . . . . . . . . . . . . . . . . . . Heaviest Build 214 | 14 34 41 42 42 107 111 112 112 127 133 129 153 157 144 136 141 151 154 154 154 152 152 160 196 187 199 214 Greatest Support 279 | 40 40 60 69 63 99 99 99 121 121 85 116 103 103 128 148 148 145 145 145 212 240 206 169 175 227 227 279 Greatest Overweight (x) 2 | . . 1 . 2 2 1 1 1 1 1 1 1 1 1 1 1 1 1 1 1 . . 1 1 1 . 1 Average Overweight (x) . | . . . . . 1 . 1 . . 1 . 1 1 . . . . . 1 . . . . . . . . Largest Inventory Capacity 25 | 8 15 15 15 15 25 25 25 25 25 25 25 25 25 25 25 25 25 25 25 25 25 25 25 25 25 25 25 Average Capacity 22 | 6 13 15 15 15 21 25 25 25 25 25 25 25 25 25 25 25 25 25 25 25 25 25 25 25 25 25 25 Most Carried 25 | 8 15 15 15 15 25 25 25 25 25 25 25 25 25 25 25 25 25 25 25 25 25 25 25 25 25 24 25 Average Carried 21 | 4 12 14 14 14 20 24 24 24 21 21 23 23 24 24 24 24 24 24 24 24 24 24 24 24 23 22 23 Final Capacity 25 | 8 15 15 15 15 25 25 25 25 25 25 25 25 25 25 25 25 25 25 25 25 25 25 25 25 25 25 25 Final Carried 25 | 8 15 15 15 15 24 25 25 24 20 25 25 24 25 25 25 25 25 25 25 25 25 23 25 25 25 22 22 Scrap Engine Consumption 427 | . . . . 43 33 9 1 6 10 15 36 12 4 4 10 6 35 21 5 16 1 3 48 16 9 . 84 Constructs Created 9 | . . . . 2 1 1 . . . . 1 . 1 . . . 1 . . . . . . . . . 2 Constructs Modified 175 | . . . . 14 15 3 . 2 3 7 13 6 1 2 6 2 13 9 1 5 5 1 22 5 4 . 36 Class Distribution -------------------- 53% | Construct 21% | Generator-Construct 8% | Scavenger-Mutant 8% | Mutant 5% | Commander-Construct 4% | Scavenger-Construct Dominant Class ---------------- Mutant | -10/Materials Scavenger-Mutant | -9/Materials Mutant | -9/Storage Construct | -9/Recycling Construct | -7/Factory Construct | -7/Lower Caves Construct | -7/Lower Caves Construct | -7/Data Miner Construct | -6/Proximity Caves Construct | -6/Factory Construct | -5/Factory Construct | -5/Upper Caves Construct | -5/Upper Caves Construct | -5/Zhirov Construct | -4/Proximity Caves Construct | -4/Factory Construct | -4/Extension Commander-Construct | -4/Cetus Commander-Construct | -4/Archives Construct | -4/Hub_04(d) Construct | -3/Research Construct | -3/Quarantine Construct | -3/Protoforge Scavenger-Construct | -2/Research Construct | -2/Testing Generator-Construct | -1/Access Generator-Construct | -1/Command Resources | -11 -10 -9 -9 -9 -7 -7 -7 -7 -6 -6 -5 -5 -5 -5 -4 -4 -4 -4 -4 -4 -3 -3 -3 -2 -2 -1 -1 ----------- Run | Yrd Mat Mat Sto Rec Fac Low Low Dat Pro Fac Fac Upp Upp Zhi Pro Fac Ext Cet Arc Hub Res Qua Frg Res Tes Acc Com Matter Collected 14408 | 283 351 497 623 506 485 262 85 108 141 76 776 296 182 57 393 70 165 20 . 60 30 70 1779 1203 119 74 5697 Remotely 1022 | . . . . . . . . . . . . . . . 6 . . . . . . . . 1016 . . . Salvage Created 54801 | 128 776 1886 1217 1821 1092 371 241 365 1009 231 3186 950 304 300 1293 267 2232 553 257 1868 443 787 12173 10755 4093 251 5952 Parts 2320 | 7 61 105 74 98 46 22 11 11 35 12 147 31 20 4 51 15 80 30 17 96 20 32 570 285 171 11 258 Haulers Intercepted 18 | . 2 6 5 . 2 . . . . . 1 . . . . . . . . 1 . . . 1 . . . Recyclers Shooed 22 | . 2 2 . 10 1 . . . . . 6 . . . . . 1 . . . . . . . . . . Parts Field Recycled . | . . . . . . . . . . . . . . . . . . . . . . . . . . . . Retrieved Matter . | . . . . . . . . . . . . . . . . . . . . . . . . . . . . Parts Self-Destructed 123 | . . . . . . 7 11 . 32 . . 23 8 3 39 . . . . . . . . . . . . Prevented . | . . . . . . . . . . . . . . . . . . . . . . . . . . . . Parts Restored 3 | . . . . . . . . . . . . . . . . . . . . . . . 3 . . . . Faulty 3 | . . . . . . . . . . . . . . . . . . . . . . . 3 . . . . Kills | -11 -10 -9 -9 -9 -7 -7 -7 -7 -6 -6 -5 -5 -5 -5 -4 -4 -4 -4 -4 -4 -3 -3 -3 -2 -2 -1 -1 ------- Run | Yrd Mat Mat Sto Rec Fac Low Low Dat Pro Fac Fac Upp Upp Zhi Pro Fac Ext Cet Arc Hub Res Qua Frg Res Tes Acc Com Combat Hostiles Destroyed 625 | . 17 28 20 6 16 9 7 4 20 4 42 15 10 . 23 3 19 6 1 14 4 5 164 140 43 3 2 Guns 33 | . 8 12 7 3 1 . . . . 2 . . . . . . . . . . . . . . . . . Cannons 496 | . 2 13 13 3 10 . 4 3 16 2 34 12 3 . 16 3 18 6 1 14 4 5 155 113 41 3 2 AOE 79 | . 6 3 . . 4 9 3 . 3 . 8 3 7 . 7 . . . . . . . . 26 . . . Classes Destroyed 32 | 2 5 4 . 2 2 1 . . 2 . 4 1 . . . . . . . . . . 7 2 . . . Worker 16 | . . 3 1 . 4 . . . . . 2 . . . . 1 . . . 2 . 1 2 . . . . Builder 19 | . 3 1 . 10 . . . . . . 1 . . . . . . . . 1 . 2 1 . . . . Tunneler 5 | 3 1 . . . 1 . . . . . . . . . . . . . . . . . . . . . . Hauler 18 | . 2 6 5 . 2 . . . . . 1 . . . . . . . . 1 . . . 1 . . . Recycler 44 | 1 2 4 1 14 2 . . . . . 6 . . . . . 5 . . 4 1 3 . . 1 . . Carrier 5 | . . . . . . . . . . . . . . . . . . . . . . . 1 4 . . . Mechanic 16 | . . . . . . . . . . . . . . . . . . . . . . . 3 13 . . . Operator 13 | . 1 2 1 . 2 . . . . 1 . . . . . . . . 5 . . . . . 1 . . Drone 8 | . . . . . . . . . 1 . . . . . 2 . . . . . . . 5 . . . . Watcher 13 | . . 2 . . . . . . . . 1 . . . . . 2 2 . . 1 1 . . 3 . 1 Swarmer 52 | . 6 3 4 . 4 9 3 . 5 . 7 4 4 . . . . . . . . . 3 . . . . Saboteur 13 | . . . . . . . . . . . . . . . . . . . . . . . 5 8 . . . Grunt 226 | . 11 15 9 . 5 . 4 . 5 . 9 9 1 . 10 . 6 . . 6 . 3 47 63 23 . . Brawler 33 | . . 1 1 . . . . . 5 . . 1 . . 1 . . . . . . . 10 12 2 . . Duelist 32 | . . . . . . . . . 3 . 1 . . . 3 . . . . . . . 6 17 2 . . Protector 20 | . . . . . . . . . . . 1 . . . 1 . . . . . . . 6 10 2 . . Researcher 8 | . . . . . . . . . . . . . . . . . . . . . . . 4 . 4 . . Sentry 52 | . . 9 6 4 3 . . . 1 . 4 1 1 . 2 3 4 . 1 . 2 . 8 2 . 1 . Specialist 8 | . . . . . . . . . . . 2 . . . . . . . . . . . 3 . 3 . . Hunter 32 | . . . . . 1 . . . . 3 6 . . . 2 . 7 . . . . . 2 4 5 2 . Programmer 58 | . . . . . 3 . . . . 1 8 . . . 2 . . . . 3 2 2 19 14 3 . 1 Heavy 3 | . . . . . . . . . . . 1 . . . . . . . . 2 . . . . . . . Behemoth 3 | . . . . . . . . . . . 1 . . . . . 2 . . . . . . . . . . Cetus Guard 6 | . . . . . . . . . . . . . . . . . . 6 . . . . . . . . . Enhanced Grunt 5 | . . . . . . . . 4 . . . . . . . . . . . 1 . . . . . . . Lightning 3 | . . . . . . . . . . . . . . . . . . . . 3 . . . . . . . Hotshot 9 | . . . . . . . . . . . . . . . . . . . . . . . 9 . . . . Decapitator 11 | . . . . . . . . . . . . . . . . . . . . . . . 11 . . . . Immortal 9 | . . . . . . . . . . . . . . . . . . . . . . . 9 . . . . Tracker 7 | . . . . . . . . . . . 1 . . . . . . . . . . . 6 . . . . Combat Programmer 7 | . . . . . . . . . . . 1 . . . . . . . . . . . 6 . . . . Investigator 2 | . . . . . . . . . . . . . . . . . . . . . . . . 2 . . . Striker 10 | . . . . . . . . . . . . . . . . . . . . . . . . 8 2 . . Executioner 2 | . . . . . . . . . . . . . . . . . . . . . . . . 2 . . . Alpha 7 3 | . . . . . . . . . . . . . . . . . . . . . . . 2 . 1 . . V-Series 7 | . . . . . . . . . . . . . . . . . . . . . . . 7 . . . . Scientist 2 | . . . . 2 . . . . . . . . . . . . . . . . . . . . . . . Scrapper 3 | . . . . 3 . . . . . . . . . . . . . . . . . . . . . . . Packrat 2 | . . . . . . 1 . . . . . 1 . . . . . . . . . . . . . . . Samaritan 5 | . . . . . . 4 . . . . . 1 . . . . . . . . . . . . . . . Tinkerer 1 | . . . . . . . . . . . . 1 . . . . . . . . . . . . . . . Wasp 3 | . . . . . . . . . . . . . 3 . . . . . . . . . . . . . . Thug 2 | . . . . . . . . . . . . . 1 . . . . . . 1 . . . . . . . Savage 1 | . . . . . . . . . . . . . 1 . . . . . . . . . . . . . . Guerrilla 1 | . . . . . . . . . . . . . . . . . . 1 . . . . . . . . . Best Kill Streak 27 | 2 5 5 4 9 4 6 3 2 7 2 12 4 4 . 5 2 9 4 2 6 3 4 20 27 15 2 2 Combat Bots Only 24 | . 4 4 4 2 4 6 3 2 7 2 10 4 4 . 5 2 6 3 1 4 2 4 18 24 15 2 1 Max Kills in Single Turn 5 | 1 2 2 1 1 3 2 2 1 2 1 5 1 3 . 2 1 1 1 1 2 1 2 4 5 1 1 1 Gunslinging . | . . . . . . . . . . . . . . . . . . . . . . . . . . . . Exploded 5 | . 2 2 . . 3 2 2 . 2 . 4 1 3 . 2 . . . . . . . . 5 . . . Melee . | . . . . . . . . . . . . . . . . . . . . . . . . . . . . Uniques/NPCs Destroyed 1 | . . . . . . . . . . . . . . . . . . . . . . . . . . . 1 MAIN.C Shell (-1/Command) Combat | -11 -10 -9 -9 -9 -7 -7 -7 -7 -6 -6 -5 -5 -5 -5 -4 -4 -4 -4 -4 -4 -3 -3 -3 -2 -2 -1 -1 -------- Run | Yrd Mat Mat Sto Rec Fac Low Low Dat Pro Fac Fac Upp Upp Zhi Pro Fac Ext Cet Arc Hub Res Qua Frg Res Tes Acc Com Hostile Shots Fired 2136 | . 94 113 75 17 141 4 4 29 132 57 220 62 21 . 81 11 134 10 4 38 10 54 463 167 149 15 31 Missed 677 | . 18 24 20 5 51 4 2 6 29 15 69 19 9 . 24 2 31 4 1 9 2 28 170 58 61 9 7 Hits 1459 | . 76 89 55 12 90 . 2 23 103 42 151 43 12 . 57 9 103 6 3 29 8 26 293 109 88 6 24 Melee 59 | . . . . . . . . . 30 . . 2 . . 3 . . . . . . . 21 . 3 . . Projectile 1400 | . 76 89 55 12 90 . 2 23 73 42 151 41 12 . 54 9 103 6 3 29 8 26 272 109 85 6 24 AOE 2 | . . . . . . . . . . . . . . . . . . . . . . . 1 1 . . . Critical Strikes 88 | . 1 3 . . 1 . . . 15 . 5 2 . . 6 1 9 1 . 4 2 1 24 5 6 . 2 Actively Blocked 14 | . . . . . . . . . . . . . . . . . . . . . . . 12 . 2 . . Part Disruptions 2 | . . . . . . . . . . . 1 . . . . . . . . . . . . . . . 1 Damage Taken 31280 | . 892 1163 625 265 999 . 35 960 2403 619 2094 721 301 . 1243 265 1921 142 81 903 194 649 7631 2562 1910 120 2582 Core 2701 | . 197 120 68 61 120 . 19 141 146 132 244 48 22 . 59 101 153 . . 40 27 100 346 138 20 . 399 Absorbed by Shields 2184 | . . . . . . . . . . 173 1147 127 8 . . . 105 66 . . . . 31 527 . . . Redirected to Shielding 483 | . . . . . . . . . . . . . . . . . . . . . . . 437 . . 26 20 Ignored by Resistances 295 | . . . . . . . . . 148 . . . . . 41 . . . . . . 53 53 . . . . Regen/Repaired (Parts) 15710 | . 139 67 . 25 414 16 . 317 319 434 1176 712 176 . 811 317 926 103 26 344 65 92 4300 1736 895 267 2033 Core Remaining (%) 63 | 100 21 . . 37 . . . . 39 84 . . . . 62 . . . . 74 . . 54 . 89 . 75 Volleys Fired 3111 | 13 86 102 94 102 77 31 17 61 89 25 193 54 24 6 54 27 81 26 13 56 35 46 395 196 108 15 1085 Largest 2 | 2 2 2 2 2 2 1 1 1 2 1 1 1 2 1 1 1 2 1 1 1 1 1 2 1 1 1 2 Hottest 460 | 70 110 116 91 136 145 89 46 46 79 46 58 58 101 58 58 58 206 74 110 75 75 75 210 72 72 72 460 Shots Fired 3626 | 26 156 201 177 160 105 30 16 60 89 25 190 54 25 5 54 27 83 26 13 56 34 45 400 196 108 15 1250 Gun 854 | 26 129 117 83 54 29 . . . 4 13 . . . . . . . . . . . . . . . . 399 Cannon 2697 | . 19 81 92 106 73 22 14 60 83 12 187 51 19 5 48 27 81 26 13 56 34 45 400 185 108 15 835 Launcher 74 | . 7 3 2 . 3 8 2 . 2 . 3 3 6 . 6 . 2 . . . . . . 11 . . 16 Special 1 | . 1 . . . . . . . . . . . . . . . . . . . . . . . . . . Kinetic 1278 | 13 56 51 83 96 11 3 . . . 10 32 14 19 5 25 16 14 26 4 . . . 214 173 . . 413 Thermal 2215 | 13 93 147 92 64 91 19 14 60 83 15 155 37 . . 23 11 67 . 9 56 34 45 149 12 108 15 803 Explosive 58 | . 7 3 2 . 3 8 2 . 2 . 3 3 6 . 6 . 2 . . . . . . 11 . . . Electromagnetic 75 | . . . . . . . . . 4 . . . . . . . . . . . . . 37 . . . 34 Robot Hit Streak 73 | 5 8 13 19 12 11 11 2 9 12 5 8 7 8 12 14 10 23 5 3 9 10 12 70 73 25 16 38 Robot Miss Streak 5 | 4 4 4 2 4 3 1 2 3 3 2 4 2 1 . 5 1 2 2 2 3 . 2 2 2 3 1 2 Penetration Max 2 | . . . . . . . . . . . 1 . . . . 1 . 1 . . . . 2 2 . . 1 Secondary Targets 1 | . 1 . . . . . . . . . . . . . . . . . . . . . . . . . . Max Gunslinging Chain 1 | . 1 . . . . . . . . . . . . . . . . . . . . . . . . . . Capacitor 118 | . . . . . . . . . . . . . . . . . . . . . . . 27 . 89 2 . Shots Hit Robots 1679 | 13 96 133 114 104 71 11 4 29 63 15 114 29 9 4 32 10 50 13 7 29 10 15 259 136 69 4 236 Core Hits 1037 | 7 50 56 37 37 30 19 8 11 30 10 62 17 17 4 42 4 27 9 4 25 3 11 177 178 31 3 128 Critical Kills 26 | . . 1 1 1 . . . . . . . . . . . . 2 . . 2 . 1 11 4 2 . 1 Critical Parts Destroyed 20 | . . . . . . . . . . . . . . . . . . . . 2 . . 15 3 . . . Critical Strikes 66 | 1 4 7 1 1 3 . . . . . . . . . . . 2 1 . 4 . 1 31 7 2 . 1 Burn 14 | 1 4 6 . . 3 . . . . . . . . . . . . . . . . . . . . . . Meltdown 6 | . . 1 1 . . . . . . . . . . . . . 1 . . . . . . . 2 . 1 Destroy 44 | . . . . 1 . . . . . . . . . . . . 1 1 . 4 . 1 29 7 . . . Corrupt 2 | . . . . . . . . . . . . . . . . . . . . . . . 2 . . . . Melee Attacks 5 | . 5 . . . . . . . . . . . . . . . . . . . . . . . . . . Impact 5 | . 5 . . . . . . . . . . . . . . . . . . . . . . . . . . Slashing . | . . . . . . . . . . . . . . . . . . . . . . . . . . . . Piercing . | . . . . . . . . . . . . . . . . . . . . . . . . . . . . Sneak Attacks . | . . . . . . . . . . . . . . . . . . . . . . . . . . . . Combat Hostiles . | . . . . . . . . . . . . . . . . . . . . . . . . . . . . Follow-up Attacks . | . . . . . . . . . . . . . . . . . . . . . . . . . . . . Damage Inflicted 197661 | 147 1531 2409 2071 2208 3171 1252 535 1615 2748 541 12070 3670 1572 646 4815 1030 5769 1870 1178 5030 1648 2726 43801 48088 20865 1204 23451 Guns 4225 | 147 921 1162 801 524 399 . . . 22 249 . . . . . . . . . . . . . . . . . Cannons 177223 | . 196 1011 1250 1684 2477 665 316 1615 2532 288 10579 3353 914 646 3361 1030 5711 1870 1178 4742 1648 2495 43771 39445 20865 1204 22377 Explosions 15887 | . 388 151 . . 269 587 219 . 174 . 1487 317 658 . 1454 . 58 . . 177 . 231 . 8643 . . 1074 Melee . | . . . . . . . . . . . . . . . . . . . . . . . . . . . . Ramming 326 | . 26 85 20 . 26 . . . 20 4 4 . . . . . . . . 111 . . 30 . . . . Kinetic 81823 | 46 307 454 801 1346 367 134 . . . 288 1797 639 914 646 1937 837 1014 1870 441 . . . 26727 39445 . . 1813 Thermal 97189 | 101 810 1719 1250 862 2509 531 316 1615 2532 249 9345 2714 . . 1424 193 4697 . 737 4742 1648 2495 15964 . 20865 1204 18667 Explosive 13893 | . 388 151 . . 269 587 219 . 174 . 827 317 658 . 1454 . 58 . . . . 231 . 8560 . . . Electromagnetic 4430 | . . . . . . . . . 22 . 97 . . . . . . . . 177 . . 1080 83 . . 2971 Impact . | . . . . . . . . . . . . . . . . . . . . . . . . . . . . Slashing . | . . . . . . . . . . . . . . . . . . . . . . . . . . . . Piercing . | . . . . . . . . . . . . . . . . . . . . . . . . . . . . Highest Corruption 27 | . 1 2 2 2 9 9 9 9 10 1 10 10 10 10 13 . . . . 2 2 4 27 3 9 . 10 Average Corruption 6 | . 1 2 2 2 8 9 9 9 9 1 7 10 10 10 12 . . . . 2 1 2 11 2 6 . 3 Corruption Purged 46 | . . . . . . . . . . . . . . . . . . . . . . . . . . . 46 Corruption Blocked . | . . . . . . . . . . . . . . . . . . . . . . . . . . . . Effects 693 | . 1 17 27 48 41 54 46 19 39 . 42 64 40 12 46 . . . . 6 3 7 141 7 22 . 11 Message Errors 172 | . . 7 5 10 4 12 12 3 8 . 10 17 18 5 13 . . . . 2 1 3 35 . 5 . 2 Matter Fused 188 | . . 4 6 10 12 17 11 5 13 . 11 20 11 3 11 . . . . . . . 39 2 6 . 7 Heat Flow Errors 67 | . . 1 5 7 4 6 7 2 5 . 4 6 3 1 5 . . . . 1 . . 9 . 1 . . Energy Discharges 94 | . . 3 3 7 7 7 5 4 3 . 5 7 4 . 5 . . . . . . 2 27 2 3 . . Parts Rejected 8 | . . . 1 . 2 . . . . . . . . . 1 . . . . 2 . . . 2 . . . Parts Fused 4 | . . . . 1 . 1 1 . . . . . . . . . . . . . . . 1 . . . . Data Loss (minor) 88 | . . 2 4 8 8 6 7 2 7 . 6 6 3 . 7 . . . . . . . 16 1 4 . 1 Data Loss (major) 32 | . 1 . 2 . . 4 1 1 . . 2 4 . 2 4 . . . . . 1 1 7 . 2 . . Misfires 6 | . . . . 3 . . . . . . . . . . . . . . . . . . 3 . . . . Alerts 20 | . . . 1 2 3 . 1 1 2 . 1 4 1 . . . . . . 1 . . 1 . 1 . 1 Weapon Failures 14 | . . . . . 1 1 1 1 1 . 3 . . 1 . . . . . . 1 1 3 . . . . Overload Shots 9 | . . . . . . . . . . . . . . . . . . . . . . . 9 . . . . Effects 1 | . . . . . . . . . . . . . . . . . . . . . . . 1 . . . . Energy Bleed 1 | . . . . . . . . . . . . . . . . . . . . . . . 1 . . . . Overflow Damage 29915 | . 22 36 7 147 198 178 . 27 81 51 1376 921 247 114 607 34 415 61 246 938 507 677 6194 7136 6233 . 3462 Projectiles 29342 | . 7 9 7 147 163 178 . 27 81 51 1242 921 220 114 607 34 415 61 246 909 507 677 6194 6835 6233 . 3457 Explosions 544 | . 15 27 . . 35 . . . . . 134 . 27 . . . . . . . . . . 301 . . 5 Melee 29 | . . . . . . . . . . . . . . . . . . . . 29 . . . . . . . Knockbacks 216 | . . . . 10 2 . . . . . 8 1 2 . 7 . 2 1 . . . . 78 105 . . . Impact 1 | . . . . . . . . . . . 1 . . . . . . . . . . . . . . . . Kinetic 186 | . . . . 10 1 . . . . . 7 1 2 . 6 . 1 1 . . . . 68 89 . . . Secondary 29 | . . . . . 1 . . . . . . . . . 1 . 1 . . . . . 10 16 . . . Self-Inflicted Damage 506 | . 40 . . . . . . . 58 . 130 . 56 . . . . . . 95 . 68 . . . . 59 Shots 13 | . 1 . . . . . . . 2 . 4 . 1 . . . . . . 1 . 1 . . . . 3 Rammed 21 | . 4 13 1 . . . . . 2 1 . . . . . . . . . . . . . . . . . Targets Rammed 34 | . 4 17 2 . 3 . . . 2 1 1 . . . . . . . . 3 . . 1 . . . . Kicked 8 | . . . . . 3 . . . . . 1 . . . . . . . . 3 . . 1 . . . . Crushed 5 | . . 4 1 . . . . . . . . . . . . . . . . . . . . . . . . Highest Temperature 504 | 80 397 333 273 302 200 185 173 203 342 62 250 321 238 160 176 13 422 . . 76 16 . 166 26 74 . 504 Average Temperature 76 | 34 99 60 55 61 100 93 81 117 113 12 57 85 89 94 66 13 109 . . 27 9 . 72 8 14 . 122 Received Heat Transfer 4556 | . 408 549 252 99 110 . 18 . 471 . 151 200 27 . 379 36 171 . 18 197 18 69 964 176 189 9 45 Effects 17 | . 1 . . 1 1 . . . 3 . 3 . . . . . 3 . . . . . . . . . 5 Shutdowns 1 | . . . . . . . . . 1 . . . . . . . . . . . . . . . . . . Energy Bleed 3 | . . . . . 1 . . . 2 . . . . . . . . . . . . . . . . . . Interference 10 | . 1 . . 1 . . . . . . 3 . . . . . 3 . . . . . . . . . 2 Matter Decay 2 | . . . . . . . . . . . . . . . . . . . . . . . . . . . 2 Short Circuit 1 | . . . . . . . . . . . . . . . . . . . . . . . . . . . 1 Siege Activations . | . . . . . . . . . . . . . . . . . . . . . . . . . . . . Martial Activations . | . . . . . . . . . . . . . . . . . . . . . . . . . . . . Shielding Activations . | . . . . . . . . . . . . . . . . . . . . . . . . . . . . Robots Disrupted 2 | . . . . . . . . . . . . . . . . . . . . . . . 2 . . . . Combat Hostiles 2 | . . . . . . . . . . . . . . . . . . . . . . . 2 . . . . Robots Corrupted 19 | . . . . . . . . . . . . . . . . . . . . 2 . . 9 1 . . 7 Combat Hostiles 17 | . . . . . . . . . . . . . . . . . . . . . . . 9 1 . . 7 Parts Fried 58 | . . . . . . . . . . . . . . . . . . . . 2 . . 20 1 . . 35 Impact Corruptions 10 | . . . . . . . . . . . . . 1 . . . . . . 1 . . 2 6 . . . Robots Melted 10 | . 1 1 1 . 1 . . 1 1 . . . . . . . 1 . . . . . . . 2 . 1 Combat Hostiles 8 | . 1 . . . 1 . . 1 1 . . . . . . . 1 . . . . . . . 2 . 1 Parts Melted 68 | . 2 13 5 2 10 1 . 2 3 1 6 . . . . . 1 . . 1 1 1 1 . 6 . 12 Heat Transferred 43926 | 370 2516 4218 2257 1483 3212 296 200 1450 2127 450 4489 1100 . . 462 74 1591 . 185 1221 370 592 4428 . 2803 200 7832 Parts Sabotaged 2 | . . . . . . . . . . . . . . . . . . . . . . . 2 . . . . Parts Stolen . | . . . . . . . . . . . . . . . . . . . . . . . . . . . . Parts Stripped . | . . . . . . . . . . . . . . . . . . . . . . . . . . . . Power Chain Reactions 2 | . . . . . . . . . . . . . . . . . . . . . . . . . . . 2 Alert | -11 -10 -9 -9 -9 -7 -7 -7 -7 -6 -6 -5 -5 -5 -5 -4 -4 -4 -4 -4 -4 -3 -3 -3 -2 -2 -1 -1 ------- Run | Yrd Mat Mat Sto Rec Fac Low Low Dat Pro Fac Fac Upp Upp Zhi Pro Fac Ext Cet Arc Hub Res Qua Frg Res Tes Acc Com Maximum Alert Level 5 | . 1 1 1 . 2 . . . . 2 4 . . . . . 1 1 1 2 2 1 5 5 5 5 5 Low Security (%) 56 | 100 96 80 66 100 . . . . . 5 15 . . . . 100 49 9 88 20 . 36 1 . . . 97 Level 1 16 | . 3 19 33 . 73 . . . . 50 9 . . . . . 50 90 11 14 65 63 13 . . . . Level 2 6 | . . . . . 26 . . . . 43 40 . . . . . . . . 65 34 . 10 . . . . Level 3 1 | . . . . . . . . . . . 11 . . . . . . . . . . . 8 . . . . Level 4 2 | . . . . . . . . . . . 22 . . . . . . . . . . . 14 . . . . Level 5 10 | . . . . . . . . . . . . . . . . . . . . . . . 50 3 97 100 2 High Security 4 | . . . . . . . . . . . . . . . . . . . . . . . . 96 2 . . Max Security . | . . . . . . . . . . . . . . . . . . . . . . . . . . . . Sterilizations 1 | . . . . . . . . . . . . . . . . . . . . . . . . 1 . . . Peak Influence 6503 | 5 259 292 316 124 452 . . . . 625 1380 . . . . 65 394 352 282 629 425 336 4574 6503 4499 2764 1647 Initial 3657 | . . 107 . 109 350 . . . . 625 94 . . . . 44 3 213 81 . 328 222 154 2572 3657 2699 1641 Average 892 | 1 76 128 125 23 352 . . . . 419 652 . . . . 34 164 257 60 401 352 240 1746 4705 4006 2663 1628 Influence Increases 22341 | 20 722 1002 740 477 919 210 160 . 430 730 1984 395 145 10 520 164 879 373 265 956 227 309 5241 3961 1214 179 109 Destroy 0b10 Robot/C 12300 | . 340 560 400 80 320 180 140 . 380 80 820 300 120 . 400 60 480 160 80 340 80 100 3160 2720 900 60 40 Destroy 0b10 Robot/NC 920 | 20 45 90 45 125 55 . . . 5 5 60 5 . 10 15 5 45 10 25 55 10 35 95 120 35 . 5 Destroy Leader 2102 | . 94 176 130 . 94 30 20 . 30 30 234 30 10 . 40 30 64 . . 86 32 12 440 392 96 20 12 Allied During Kill 530 | . . . . . . . . . . . . . . . 5 . 75 129 105 184 . . . . . 32 . Successful Hack 177 | . 40 40 26 16 15 . . . . . 21 . . . . 14 5 . . . . . . . . . . Select Force Hacks 300 | . 60 . 30 210 . . . . . . . . . . . . . . . . . . . . . . . Disable Machine 1305 | . . 30 75 30 . . . . . . 360 . . . . . 60 30 45 75 45 45 330 45 105 15 15 Anti-Garrison Action 300 | . . . . . . . . . . . 150 . . . . . . . . . . . 150 . . . . Destroy Structure 2842 | . 53 31 19 16 40 . . . . 15 264 . . . . 40 90 44 10 216 30 102 1036 669 78 52 37 Advance Influence 950 | . . . . . 350 . . . . 600 . . . . . . . . . . . . . . . . . Partial Spotted 30 | . 15 . . . . . . . . . . . . . . . . . . . 15 . . . . . . Lose Combat Pursuer 585 | . 75 75 15 . 45 . . . 15 . 75 60 15 . 60 15 60 . . . 15 15 30 15 . . . Influence Decreases 20701 | 20 467 1257 457 759 570 560 160 . 389 578 800 1099 575 253 448 228 505 551 469 330 458 429 942 2032 3218 2112 1035 Entered New Map 9941 | . . 148 . 174 1 130 . . . 16 99 511 129 243 . 28 5 169 123 . 298 173 121 2002 2846 1800 925 Time Decay 9322 | 20 447 614 457 503 559 430 160 . 299 362 541 568 446 10 428 180 419 362 346 230 160 246 751 20 362 302 100 Search Patrol Dispatched 200 | . . . . . . . . . . 200 . . . . . . . . . . . . . . . . . Lost Part 280 | . 20 30 . . 10 . . . 50 . 10 20 . . . . 20 . . . . 10 70 10 10 10 10 Lost Ally 261 | . . . . . . . . . 40 . . . . . 20 20 61 20 . 100 . . . . . . . Purge Threat 697 | . . 465 . 82 . . . . . . 150 . . . . . . . . . . . . . . . . Squads Dispatched 135 | . 6 2 3 . 6 . . . 1 2 13 . . . 1 1 3 . . 4 5 3 37 32 10 5 1 Investigation 12 | . 3 . 1 . 1 . . . . . 2 . . . . . . . . 2 2 . 1 . . . . Extermination 19 | . . . . . 3 . . . . 1 3 . . . . . . . . 1 . 1 7 . 2 1 . Reinforcement 24 | . 3 2 2 . 2 . . . . 1 4 . . . . 1 3 . . . 3 2 1 . . . . Assault 69 | . . . . . . . . . 1 . 2 . . . 1 . . . . 1 . . 19 32 8 4 1 Garrison 6 | . . . . . . . . . . . 1 . . . . . . . . . . . 5 . . . . Intercept 5 | . . . . . . . . . . . 1 . . . . . . . . . . . 4 . . . . Searches Triggered 2 | . . . . . . . . . . 2 . . . . . . . . . . . . . . . . . Unchained Authorized 1 | . . . . . . . . . . . . . . . . . . . . . . . . . 1 . . Construction Impeded 4 | . . . . . . . . . . 1 1 . . . . . 1 . . . . 1 . . . . . Haulers Reinforced 2 | . . . . . 1 . . . . . . . . . . . . . . . . 1 . . . . . Active Scanning Responses . | . . . . . . . . . . . . . . . . . . . . . . . . . . . . Cargo Convoy Interrupts . | . . . . . . . . . . . . . . . . . . . . . . . . . . . . Stealth | -11 -10 -9 -9 -9 -7 -7 -7 -7 -6 -6 -5 -5 -5 -5 -4 -4 -4 -4 -4 -4 -3 -3 -3 -2 -2 -1 -1 --------- Run | Yrd Mat Mat Sto Rec Fac Low Low Dat Pro Fac Fac Upp Upp Zhi Pro Fac Ext Cet Arc Hub Res Qua Frg Res Tes Acc Com Distress Signals 30 | . . 7 3 . 1 . . . . . 2 . . . . 1 1 2 . 5 2 1 1 . 4 . . Communications Jammed 16 | . . . . . . . . . . . 15 . . . . . . . . . . . 1 . . . . Distress Signals 12 | . . . . . . . . . . . 12 . . . . . . . . . . . . . . . . Times Spotted 773 | . 32 45 33 5 21 5 4 4 30 6 55 18 11 . 27 5 27 9 6 24 5 8 191 126 68 4 4 Peak Tracking Total 21 | . 4 4 5 4 4 3 2 2 9 2 8 6 4 . 7 3 7 5 1 5 4 5 20 21 9 3 1 Tactical Retreats 30 | . 2 4 1 . 3 . . . 1 . 4 4 1 . 1 1 3 . . . 1 1 2 1 . . . Traps | -11 -10 -9 -9 -9 -7 -7 -7 -7 -6 -6 -5 -5 -5 -5 -4 -4 -4 -4 -4 -4 -3 -3 -3 -2 -2 -1 -1 ------- Run | Yrd Mat Mat Sto Rec Fac Low Low Dat Pro Fac Fac Upp Upp Zhi Pro Fac Ext Cet Arc Hub Res Qua Frg Res Tes Acc Com Traps Triggered 91 | . 2 1 3 . 7 . . . . 1 1 . 1 . . . 6 . . 1 . . 10 1 . . 57 Indirectly 39 | . . . . . . . . . . . . . . . . . . . . . . . . 1 . . 38 Trap Hack Attempts . | . . . . . . . . . . . . . . . . . . . . . . . . . . . . Triggered . | . . . . . . . . . . . . . . . . . . . . . . . . . . . . Disarmed . | . . . . . . . . . . . . . . . . . . . . . . . . . . . . Reprogrammed . | . . . . . . . . . . . . . . . . . . . . . . . . . . . . Reused . | . . . . . . . . . . . . . . . . . . . . . . . . . . . . Traps Extracted . | . . . . . . . . . . . . . . . . . . . . . . . . . . . . Installed . | . . . . . . . . . . . . . . . . . . . . . . . . . . . . Triggered . | . . . . . . . . . . . . . . . . . . . . . . . . . . . . Machines | -11 -10 -9 -9 -9 -7 -7 -7 -7 -6 -6 -5 -5 -5 -5 -4 -4 -4 -4 -4 -4 -3 -3 -3 -2 -2 -1 -1 ---------- Run | Yrd Mat Mat Sto Rec Fac Low Low Dat Pro Fac Fac Upp Upp Zhi Pro Fac Ext Cet Arc Hub Res Qua Frg Res Tes Acc Com Machines Disabled 115 | . . 3 5 2 . . . . . . 25 1 . . 1 . 5 2 3 5 3 3 40 6 7 1 3 Max in Single Turn 6 | . . 1 1 1 . . . . . . 6 1 . . 1 . 1 2 1 5 1 1 2 1 1 1 1 Garrison Access 2 | . . . . . . . . . . . 1 . . . . . . . . . . . 1 . . . . Network Hub 1 | . . . . . . . . . . . . . . . . . . . . 1 . . . . . . . Machines Repaired . | . . . . . . . . . . . . . . . . . . . . . . . . . . . . Machines Dismantled . | . . . . . . . . . . . . . . . . . . . . . . . . . . . . Machines Sabotaged . | . . . . . . . . . . . . . . . . . . . . . . . . . . . . Overloaded Fab Kills . | . . . . . . . . . . . . . . . . . . . . . . . . . . . . Hacking | -11 -10 -9 -9 -9 -7 -7 -7 -7 -6 -6 -5 -5 -5 -5 -4 -4 -4 -4 -4 -4 -3 -3 -3 -2 -2 -1 -1 --------- Run | Yrd Mat Mat Sto Rec Fac Low Low Dat Pro Fac Fac Upp Upp Zhi Pro Fac Ext Cet Arc Hub Res Qua Frg Res Tes Acc Com Machines Accessed 73 | . 8 11 8 15 5 2 1 . . 3 6 2 1 3 . 1 3 1 . 1 . . 1 . 1 . . Terminals 43 | . 5 7 7 6 4 . . . . 3 4 . . . . 1 3 1 . 1 . . . . 1 . . Fabricators 1 | . . . . . 1 . . . . . . . . . . . . . . . . . . . . . . Repair Stations 3 | . 1 2 . . . . . . . . . . . . . . . . . . . . . . . . . Recycling Units 11 | . 2 . 1 8 . . . . . . . . . . . . . . . . . . . . . . . Scanalyzers 2 | . . 2 . . . . . . . . . . . . . . . . . . . . . . . . . Garrison Access 3 | . . . . . . . . . . . 2 . . . . . . . . . . . 1 . . . . Total Hacks 164 | . 21 36 15 33 10 2 1 . . 4 13 4 1 9 . 2 4 2 . 3 . . 1 . 3 . . Successful 94 | . 15 21 9 18 5 2 1 . . . 5 4 1 9 . 1 2 . . 1 . . . . . . . Failed 70 | . 6 15 6 15 5 . . . . 4 8 . . . . 1 2 2 . 2 . . 1 . 3 . . Catastrophic 11 | . 1 . . 2 . . . . . 2 1 . . . . . . 2 . . . . 1 . 2 . . Database Lockouts . | . . . . . . . . . . . . . . . . . . . . . . . . . . . . Manual 91 | . 16 14 6 31 6 . . . . 2 6 . . . . 2 3 1 . 3 . . 1 . . . . Terminals 104 | . 13 22 14 20 8 . . . . 4 9 . . . . 2 4 2 . 3 . . . . 3 . . Fabricators 2 | . . . . . 2 . . . . . . . . . . . . . . . . . . . . . . Repair Stations 11 | . 5 6 . . . . . . . . . . . . . . . . . . . . . . . . . Recycling Units 15 | . 3 . 1 11 . . . . . . . . . . . . . . . . . . . . . . . Scanalyzers 8 | . . 8 . . . . . . . . . . . . . . . . . . . . . . . . . Garrison Access 5 | . . . . . . . . . . . 4 . . . . . . . . . . . 1 . . . . Terminal Hacks 38 | . 1 6 5 4 2 2 1 . . . 2 4 1 9 . . 1 . . . . . . . . . . Record 8 | . . . . . . . . . . . . 3 . 5 . . . . . . . . . . . . . Part Schematic 2 | . 1 . 1 . . . . . . . . . . . . . . . . . . . . . . . . Robot Schematic 1 | . . 1 . . . . . . . . . . . . . . . . . . . . . . . . . Prototype ID Bank 5 | . . . . . 1 . . . . . . . . 4 . . . . . . . . . . . . . Open Door 9 | . . . 3 . . 2 1 . . . . 1 1 . . . 1 . . . . . . . . . . Branch Access Points 2 | . . . . . 1 . . . . . 1 . . . . . . . . . . . . . . . . Unreport Threat 7 | . . 4 . 2 . . . . . . 1 . . . . . . . . . . . . . . . . Hauler Manifests 2 | . . 1 1 . . . . . . . . . . . . . . . . . . . . . . . . Release Object 2 | . . . . 2 . . . . . . . . . . . . . . . . . . . . . . . Fabricator Hacks 1 | . . . . . 1 . . . . . . . . . . . . . . . . . . . . . . Build 1 | . . . . . 1 . . . . . . . . . . . . . . . . . . . . . . Repair Station Hacks 7 | . 3 4 . . . . . . . . . . . . . . . . . . . . . . . . . Scan Component 5 | . 2 3 . . . . . . . . . . . . . . . . . . . . . . . . . Repair 2 | . 1 1 . . . . . . . . . . . . . . . . . . . . . . . . . Recycling Unit Hacks . | . . . . . . . . . . . . . . . . . . . . . . . . . . . . Scanalyzer 7 | . . 7 . . . . . . . . . . . . . . . . . . . . . . . . . Insert Component 1 | . . 1 . . . . . . . . . . . . . . . . . . . . . . . . . Retrieve Study 6 | . . 6 . . . . . . . . . . . . . . . . . . . . . . . . . Garrison Access Hacks 1 | . . . . . . . . . . . 1 . . . . . . . . . . . . . . . . Unlock Access 1 | . . . . . . . . . . . 1 . . . . . . . . . . . . . . . . Unauthorized Hacks 39 | . 10 4 4 14 2 . . . . . 2 . . . . 1 1 . . 1 . . . . . . . Terminals 27 | . 8 4 3 6 1 . . . . . 2 . . . . 1 1 . . 1 . . . . . . . Botnet 21 | . 3 4 3 6 1 . . . . . 2 . . . . 1 1 . . . . . . . . . . Skim 5 | . 5 . . . . . . . . . . . . . . . . . . . . . . . . . . Sabotage 1 | . . . . . . . . . . . . . . . . . . . . 1 . . . . . . . Fabricators 1 | . . . . . 1 . . . . . . . . . . . . . . . . . . . . . . Prioritize 1 | . . . . . 1 . . . . . . . . . . . . . . . . . . . . . . Repair Stations . | . . . . . . . . . . . . . . . . . . . . . . . . . . . . Recycling Units 11 | . 2 . 1 8 . . . . . . . . . . . . . . . . . . . . . . . Reject 1 | . . . . 1 . . . . . . . . . . . . . . . . . . . . . . . Tunnel 10 | . 2 . 1 7 . . . . . . . . . . . . . . . . . . . . . . . Scanalyzers . | . . . . . . . . . . . . . . . . . . . . . . . . . . . . Garrison Access . | . . . . . . . . . . . . . . . . . . . . . . . . . . . . Data Cores Recovered 3 | . . . . . 1 . . . . 1 . . . . . . . . . . . . . . 1 . . Used 1 | . . . . . . . . . . 1 . . . . . . . . . . . . . . . . . Hacking Detections 43 | . 6 10 4 5 3 . . . . 3 6 . . . . 1 1 1 . 1 . . 1 . 1 . . Full Trace Events 3 | . . . . . 1 . . . . . 2 . . . . . . . . . . . . . . . . Feedback Events . | . . . . . . . . . . . . . . . . . . . . . . . . . . . . Feedback Blocked . | . . . . . . . . . . . . . . . . . . . . . . . . . . . . Robot Schematics Acquired 7 | . . 1 . . . . . . . . . . . . . . . . . . . . 3 . 3 . . Robots Built . | . . . . . . . . . . . . . . . . . . . . . . . . . . . . Authchips . | . . . . . . . . . . . . . . . . . . . . . . . . . . . . Time . | . . . . . . . . . . . . . . . . . . . . . . . . . . . . Total Robot Build Rating . | . . . . . . . . . . . . . . . . . . . . . . . . . . . . Part Schematics Acquired 13 | . 1 . 1 . . . . . . . . . . . . . . . . . . . 7 . 4 . . Parts Built 2 | . . . . . 2 . . . . . . . . . . . . . . . . . . . . . . Authchips . | . . . . . . . . . . . . . . . . . . . . . . . . . . . . Time 106 | . . . . . 106 . . . . . . . . . . . . . . . . . . . . . . Total Part Build Rating 12 | . . . . . 12 . . . . . . . . . . . . . . . . . . . . . . Part Studies Acquired 6 | . . 6 . . . . . . . . . . . . . . . . . . . . . . . . . Parts Repaired 2 | . 1 1 . . . . . . . . . . . . . . . . . . . . . . . . . Time 52 | . 26 26 . . . . . . . . . . . . . . . . . . . . . . . . . Parts Recycled . | . . . . . . . . . . . . . . . . . . . . . . . . . . . . Recycled Matter . | . . . . . . . . . . . . . . . . . . . . . . . . . . . . Retrieved Matter . | . . . . . . . . . . . . . . . . . . . . . . . . . . . . Retrieved Components . | . . . . . . . . . . . . . . . . . . . . . . . . . . . . Parts Scanalyzed . | . . . . . . . . . . . . . . . . . . . . . . . . . . . . Part Schematics Acquired . | . . . . . . . . . . . . . . . . . . . . . . . . . . . . Parts Damaged . | . . . . . . . . . . . . . . . . . . . . . . . . . . . . Bothacking | -11 -10 -9 -9 -9 -7 -7 -7 -7 -6 -6 -5 -5 -5 -5 -4 -4 -4 -4 -4 -4 -3 -3 -3 -2 -2 -1 -1 ------------ Run | Yrd Mat Mat Sto Rec Fac Low Low Dat Pro Fac Fac Upp Upp Zhi Pro Fac Ext Cet Arc Hub Res Qua Frg Res Tes Acc Com Used RIF Installer . | . . . . . . . . . . . . . . . . . . . . . . . . . . . . Robots Hacked . | . . . . . . . . . . . . . . . . . . . . . . . . . . . . Non-combat . | . . . . . . . . . . . . . . . . . . . . . . . . . . . . Combat . | . . . . . . . . . . . . . . . . . . . . . . . . . . . . Robot Hacks Applied . | . . . . . . . . . . . . . . . . . . . . . . . . . . . . Relay Couplers Released 10 | . . . . . . . . . . . 7 . . . . . . . . . . . 3 . . . . Machine Destruction 3 | . . . . . . . . . . . 3 . . . . . . . . . . . . . . . . Programmers 7 | . . . . . . . . . . . 4 . . . . . . . . . . . 3 . . . . Fabnet Peak Effective % . | . . . . . . . . . . . . . . . . . . . . . . . . . . . . Robots Rewired 9 | . . . . . . . . . 2 . . . . . 2 . 5 . . . . . . . . . . Allies Hacked . | . . . . . . . . . . . . . . . . . . . . . . . . . . . . Hacks Repelled . | . . . . . . . . . . . . . . . . . . . . . . . . . . . . Allies | -11 -10 -9 -9 -9 -7 -7 -7 -7 -6 -6 -5 -5 -5 -5 -4 -4 -4 -4 -4 -4 -3 -3 -3 -2 -2 -1 -1 -------- Run | Yrd Mat Mat Sto Rec Fac Low Low Dat Pro Fac Fac Upp Upp Zhi Pro Fac Ext Cet Arc Hub Res Qua Frg Res Tes Acc Com Total Allies 26 | . . . . . . . . . 2 . . . . . 2 . 11 5 . . . . . . . 3 3 Largest Group 9 | . . . . . . . . . 2 . . . . . 2 1 6 9 8 7 . . . . . 3 3 Highest-Rated Group 744 | . . . . . . . . . 64 . . . . . 96 49 361 744 685 542 . . . . . 379 379 Highest-Rated Ally 159 | . . . . . . . . . 32 . . . . . 49 49 159 143 143 96 . . . . . 135 135 Total Orders 11 | . . . . . . . . . . 3 . . . . 2 . 4 1 . 1 . . . . . . . STAY 5 | . . . . . . . . . . . . . . . 1 . 2 1 . 1 . . . . . . . FOLLOW 3 | . . . . . . . . . . . . . . . 1 . 2 . . . . . . . . . . EXPLORE 2 | . . . . . . . . . . 2 . . . . . . . . . . . . . . . . . RETURN 1 | . . . . . . . . . . 1 . . . . . . . . . . . . . . . . . Ally Attacks 148 | . . . . . . . . . 4 . . . . . 2 . 42 30 20 42 . . . . . 5 3 Total Damage 5353 | . . . . . . . . . 137 . . . . . 29 . 1122 1067 724 2040 . . . . . 220 14 Kills 19 | . . . . . . . . . . . . . . . . . 8 2 3 6 . . . . . . . Allies Corrupted 6 | . . . . . . . . . 1 . . . . . . . . . . 5 . . . . . . . Allies Melted . | . . . . . . . . . . . . . . . . . . . . . . . . . . . . Intel | -11 -10 -9 -9 -9 -7 -7 -7 -7 -6 -6 -5 -5 -5 -5 -4 -4 -4 -4 -4 -4 -3 -3 -3 -2 -2 -1 -1 ------- Run | Yrd Mat Mat Sto Rec Fac Low Low Dat Pro Fac Fac Upp Upp Zhi Pro Fac Ext Cet Arc Hub Res Qua Frg Res Tes Acc Com Active Infowar (turns) 12867 | 12 1197 . . . 582 1782 1514 197 . 12 177 522 1072 309 1026 220 . . . 17 . . 1021 . . . 3207 Optics 3207 | . . . . . . . . . . . . . . . . . . . . . . . . . . . 3207 Terrain 7089 | . . . . . 582 1782 1514 197 . 12 . 522 1072 309 1026 73 . . . . . . . . . . . Structural 952 | . 952 . . . . . . . . . . . . . . . . . . . . . . . . . . Seismic 257 | 12 245 . . . . . . . . . . . . . . . . . . . . . . . . . . Jamming 1361 | . . . . . . . . . . . 177 . . . . 147 . . . 17 . . 1020 . . . . ECM 1 | . . . . . . . . . . . . . . . . . . . . . . . 1 . . . . Robot Analysis Total 154 | . . . . . . . . 154 . . . . . . . . . . . . . . . . . . . Derelict Logs Recovered 6 | . . . . . . 2 . . 1 . . 1 1 . 1 . . . . . . . . . . . . Drone Launches 3 | . . . . . . . . . . 3 . . . . . . . . . . . . . . . . . Drone Recoveries 3 | . . . . . . . . . . 3 . . . . . . . . . . . . . . . . . Exploration | -11 -10 -9 -9 -9 -7 -7 -7 -7 -6 -6 -5 -5 -5 -5 -4 -4 -4 -4 -4 -4 -3 -3 -3 -2 -2 -1 -1 ------------- Run | Yrd Mat Mat Sto Rec Fac Low Low Dat Pro Fac Fac Upp Upp Zhi Pro Fac Ext Cet Arc Hub Res Qua Frg Res Tes Acc Com Turns Passed 44934 | 164 1586 2544 1346 3423 1651 1942 1514 519 1178 822 1813 1706 1114 316 1227 370 2115 827 1422 516 322 528 4004 1580 857 660 8868 Spaces Moved 23118 | 72 736 1220 595 2038 919 1003 789 173 515 329 603 1040 744 176 904 246 1049 482 178 206 192 261 2112 557 458 113 5408 Core 8 | 8 . . . . . . . . . . . . . . . . . . . . . . . . . . . Treads 9350 | 64 736 1220 595 1131 25 1003 789 173 515 329 82 587 313 . . . 392 . . . 6 . 29 . 37 113 1211 Legs 11768 | . . . . 160 861 . . . . . 521 6 431 176 904 197 116 482 178 206 186 261 2083 557 421 . 4022 Wheels 1310 | . . . . 747 33 . . . . . . 447 . . . . 83 . . . . . . . . . . Hover 682 | . . . . . . . . . . . . . . . . 49 458 . . . . . . . . . 175 Flight . | . . . . . . . . . . . . . . . . . . . . . . . . . . . . Fastest Speed 50 | 50 160 160 160 90 115 145 187 145 145 219 144 144 138 102 102 102 97 119 195 116 97 169 78 78 103 141 61 Average Speed 136 | 147 160 163 160 138 138 186 187 175 181 219 227 147 140 129 103 107 165 147 195 177 132 169 133 104 141 141 84 Slowest Speed 285 | 160 160 240 160 174 187 187 187 187 219 219 285 198 144 173 173 129 261 195 195 195 169 169 205 161 188 141 145 Overloaded Moves . | . . . . . . . . . . . . . . . . . . . . . . . . . . . . Propulsion Burnouts . | . . . . . . . . . . . . . . . . . . . . . . . . . . . . Robots Hopped . | . . . . . . . . . . . . . . . . . . . . . . . . . . . . Potential Cave-ins 76 | . . . . . . . . . . . 2 . . . . . . . . 4 . 2 11 . . 4 53 Cave-ins Triggered 6 | . . . . . . . . . . . . . . . . . . . . . . . . 1 . . 5 Teleports 2 | . . . . . . . . . . . . . . . . . . . . . . . 2 . . . . Exploration Rate (%) 56 | 4 94 96 89 96 18 95 96 76 56 15 26 93 94 60 88 10 76 64 75 19 8 39 30 20 63 6 62 Regions Visited 27 Branch Regions 18 Pre-discovered Areas 34 | . 3 . 1 7 . . . 18 . . . 1 . 3 1 . . . . . . . . . . . . Known Exits Taken 5 | . . 1 1 . 1 . . . . . 1 . . . . . . . . . . . . . . 1 . Unknown Exits Taken 22 | 1 1 . . 1 . 1 1 1 1 1 . 1 1 1 1 1 1 1 1 1 1 1 1 1 1 . . Scrap Searched 15 | . . . . . . 3 2 . 1 . . 3 2 . 4 . . . . . . . . . . . . Spaces Dug 881 | . 4 . . 1 3 7 5 . 1 10 17 4 9 . 8 17 14 1 . 9 13 14 79 186 18 5 456 Terrain Destroyed 2969 | . 54 31 13 7 47 72 26 1 38 15 145 67 122 . 127 24 54 13 5 181 20 67 222 400 31 10 1177 Melee 3 | . 3 . . . . . . . . . . . . . . . . . . . . . . . . . . Projectile 2097 | . 1 . . 7 19 12 9 1 16 15 63 25 15 . 37 24 30 13 5 20 20 25 222 300 31 10 1177 AOE 869 | . 50 31 13 . 28 60 17 . 22 . 82 42 107 . 90 . 24 . . 161 . 42 . 100 . . . Terrain Rammed . | . . . . . . . . . . . . . . . . . . . . . . . . . . . . Walls Destroyed . | . . . . . . . . . . . . . . . . . . . . . . . . . . . . Machines Disabled . | . . . . . . . . . . . . . . . . . . . . . . . . . . . . Actions | -11 -10 -9 -9 -9 -7 -7 -7 -7 -6 -6 -5 -5 -5 -5 -4 -4 -4 -4 -4 -4 -3 -3 -3 -2 -2 -1 -1 --------- Run | Yrd Mat Mat Sto Rec Fac Low Low Dat Pro Fac Fac Upp Upp Zhi Pro Fac Ext Cet Arc Hub Res Qua Frg Res Tes Acc Com Total 33290 | 106 983 1569 822 2483 1205 1044 812 329 679 408 924 1161 789 258 1150 336 1365 575 1242 300 239 321 3021 1442 641 605 8481 Wait 5756 | . 100 145 57 315 103 1 3 80 37 29 70 42 6 63 129 45 111 56 1046 18 4 . 319 616 42 471 1848 Move 23086 | 71 735 1219 594 2037 918 1002 788 172 514 328 602 1039 743 175 903 245 1048 481 177 205 191 260 2112 556 457 112 5402 Hop . | . . . . . . . . . . . . . . . . . . . . . . . . . . . . Pick Up 324 | 15 16 24 10 6 40 2 1 6 3 11 23 8 4 3 9 5 6 3 3 6 3 4 53 18 9 2 31 Fast Attach 69 | . 6 4 14 2 2 . . 2 . . . . . 4 2 2 3 2 . 2 . 3 13 1 2 . 5 Attach 129 | 7 2 6 1 2 9 3 1 1 6 2 7 5 4 . 10 1 2 . . . 3 2 22 16 4 2 11 Detach 49 | . . . . 3 2 2 1 . 2 . 3 1 3 . 9 . 2 1 . . . . 6 7 2 . 5 Swap 187 | . 16 21 19 2 10 1 . 1 . 8 3 5 1 1 5 4 9 . . 4 2 . 43 9 5 2 16 Drop 329 | . 13 31 31 14 31 2 1 6 2 4 22 7 4 6 10 7 11 6 3 6 1 6 51 12 12 1 29 Fire 3111 | 13 86 102 94 102 77 31 17 61 89 25 193 54 24 6 54 27 81 26 13 56 35 46 395 196 108 15 1085 Melee 5 | . 5 . . . . . . . . . . . . . . . . . . . . . . . . . . Ram . | . . . . . . . . . . . . . . . . . . . . . . . . . . . . Kick 7 | . . . . . 3 . . . . . 1 . . . . . . . . 3 . . . . . . . Crush 26 | . 4 17 2 . . . . . 2 1 . . . . . . . . . . . . . . . . . Escape Stasis 98 | . . . . . 10 . . . . . . . . . . . 37 . . . . . 7 11 . . 33 Rewire 114 | . . . . . . . . . 24 . . . . . 19 . 55 . . . . . . . . . 16 Trap . | . . . . . . . . . . . . . . . . . . . . . . . . . . . . Miscellaneous . | . . . . . . . . . . . . . . . . . . . . . . . . . . . . Route ------- -11/Scrapyard -10/Materials (discovered 5 exits: *Mat x3 / *Min / Sub) -9/Materials (discovered 5 exits: *Mat x3 / [*Min] / *Sto) -9/Storage (discovered 2 exits: *Mat / *Rec) -9/Recycling -7/Factory (discovered 3 exits: *Fac / *Low x2) -7/Lower Caves (discovered 2 exits: *Low / [*Dat]) -7/Lower Caves (discovered 2 exits: *Fac / [*Dat]) -7/Data Miner -6/Proximity Caves -6/Factory (discovered 2 exits: *Fac / Low) -5/Factory (discovered 2 exits: *Upp x2) -5/Upper Caves -5/Upper Caves (discovered 2 exits: *Fac / *Zhi) -5/Zhirov -4/Proximity Caves -4/Factory (discovered 3 exits: [*Res] / [*Upp] / *Ext) -4/Extension (discovered 2 exits: [*Res] / *Cet) -4/Cetus (discovered 2 exits: [*Res] / [*Arc]) -4/Archives (discovered 2 exits: *Hub x2) -4/Hub_04(d) -3/Research -3/Quarantine (discovered 2 exits: [*Sec] / *Frg) -3/Protoforge -2/Research -2/Testing -1/Access (discovered 2 exits: Sur / *Com) -1/Command (discovered 2 exits: *Sur x2) To Epsilon Eridani History --------- Turn | Location | Event 21 | -11/Scrapyard | Discovered new exit (range 16) 165 | -11/Scrapyard | Entered Materials 310 | -10/Materials | Build established: Mutant 453 | -10/Materials | Discovered new exit (range 8) 763 | -10/Materials | Repaired Lgt. Treads 848 | -10/Materials | Discovered new exit (range 7) 921 | -10/Materials | Discovered new exit (range 15) 1130 | -10/Materials | Discovered new exit (range 8) 1196 | -10/Materials | Core integrity fell below 50% 1214 | -10/Materials | Discovered new exit (range 13) 1451 | -10/Materials | Identified exit to Subcaves 1451 | -10/Materials | Identified exit to Mines 1533 | -10/Materials | Learned 4 Recycling zone layouts 1541 | -10/Materials | Learned 2 Mines zone layouts 1542 | -10/Materials | Learned location of 2 exits from Materials 1543 | -10/Materials | Learned location of Subcaves (-10) 1565 | -10/Materials | Learned Storage garrison access intel 1751 | -10/Materials | Entered another Materials area 1751 | -9/Materials | Evolved 2 slots: Propulsion x1, Utility x1 1752 | -9/Materials | Identified exit to Storage 1753 | -9/Materials | Identified exit to Materials 2080 | -9/Materials | Discovered new exit (range 6) 2609 | -9/Materials | Build established: Scavenger-Mutant 2690 | -9/Materials | Discovered exit to Materials (range 15) 3183 | -9/Materials | Repaired Lgt. Treads+ 4295 | -9/Materials | Entered Storage 4296 | -9/Storage | Identified exit to Recycling 4297 | -9/Storage | Loaded intel: 1 garrison access location 4609 | -9/Storage | Build established: Mutant 4802 | -9/Storage | Discovered exit to Materials (range 6) 5636 | -9/Storage | Used back door to open Recycling access 5641 | -9/Storage | Entered Recycling 5744 | -9/Recycling | Build established: Scavenger-Mutant 5974 | -9/Recycling | Scanned before Scraplab entrance 6000 | -9/Recycling | Angered Scraplab inhabitants 6026 | -9/Recycling | Core integrity fell below 50% 6540 | -9/Recycling | Discovered new exit (range 16) 7134 | -9/Recycling | Found Prototype Device 7134 | -9/Recycling | Identified Scrap Engine 7606 | -9/Recycling | Build established: Construct 9064 | -9/Recycling | Entered Factory 9064 | -7/Factory | Evolved 4 slots: Propulsion x1, Utility x2, Weapon x1 9213 | -7/Factory | Identified exit to Lower Caves 9801 | -7/Factory | Fabricated Lrn. Tractor Beam? 10314 | -7/Factory | Discovered new exit (range 5) 10715 | -7/Factory | Entered Lower Caves 10789 | -7/Lower Caves | Learned location of 1 exit from Factory 11428 | -7/Lower Caves | Learned 4 Factory zone layouts 11731 | -7/Lower Caves | A Derelict revealed a hidden shortcut to meet someone special 12276 | -7/Lower Caves | Discovered new exit (range 15) 12657 | -7/Lower Caves | Entered another Lower Caves area 12657 | -7/Lower Caves | Discovered new exit (range 7) 13817 | -7/Lower Caves | Discovered new exit (range 11) 14171 | -7/Lower Caves | Entered Data Miner 14171 | -7/Data Miner | Discovered new exit (range 6) 14207 | -7/Data Miner | Met Data Miner 14238 | -7/Data Miner | Interfaced with the Data Conduit 14425 | -7/Data Miner | Found Exp. Thermal Shield 14690 | -7/Data Miner | Entered Proximity Caves 14800 | -6/Proximity Caves | Spotter reported a threat 14867 | -6/Proximity Caves | Spotter reported a threat 15093 | -6/Proximity Caves | Spotter reported a threat 15136 | -6/Proximity Caves | Learned Factory interactive machine intel 15374 | -6/Proximity Caves | Attracted the attention of an 0b10 outpost 15417 | -6/Proximity Caves | System corruption reached 10% 15420 | -6/Proximity Caves | Core integrity fell below 50% 15455 | -6/Proximity Caves | Destroyed 7 combat bots 15632 | -6/Proximity Caves | Lost 4 parts (1p1n1u1w) 15786 | -6/Proximity Caves | Spotter reported a threat 15857 | -6/Proximity Caves | Discovered new exit (range 6) 15868 | -6/Proximity Caves | Entered Factory 15868 | -6/Factory | Evolved 2 slots: Power x1, Utility x1 15869 | -6/Factory | Identified exit to Lower Caves 15871 | -6/Factory | Loaded intel: 288 machine locations 15872 | -6/Factory | Loaded intel: 54 interactive machine locations 16218 | -6/Factory | Search patrols dispatched 16548 | -6/Factory | Discovered new exit (range 44) 16568 | -6/Factory | Search patrols dispatched 16690 | -6/Factory | Entered another Factory area 16690 | -5/Factory | Evolved 2 slots: Propulsion x1, Weapon x1 16691 | -5/Factory | Loaded intel: 250 machine locations 17036 | -5/Factory | Destroyed 10 combat bots 17098 | -5/Factory | Discovered new exit (range 14) 17413 | -5/Factory | Spotted B-75 Beast 17429 | -5/Factory | Destroyed B-75 Beast 17613 | -5/Factory | Identified exit to Upper Caves 17836 | -5/Factory | Intercept squad dispatched 17837 | -5/Factory | Identified exit to Garrison 17855 | -5/Factory | Garrison activated, responded to threat 17865 | -5/Factory | Spotted Tracker 17867 | -5/Factory | Spotted Combat Programmer 17867 | -5/Factory | Destroyed Tracker 17880 | -5/Factory | Destroyed Combat Programmer 18348 | -5/Factory | System corruption reached 10% 18503 | -5/Factory | Entered Upper Caves 18581 | -5/Upper Caves | Encountered a Warlord checkpoint 18684 | -5/Upper Caves | Learned 4 Factory zone layouts 18869 | -5/Upper Caves | Attracted the attention of an 0b10 checkpoint 19543 | -5/Upper Caves | Discovered new exit (range 8) 19747 | -5/Upper Caves | Entered an active Warlord outpost 19775 | -5/Upper Caves | Learned Factory trap positions 19775 | -5/Upper Caves | Learned Extension stockpile data 20209 | -5/Upper Caves | Entered another Upper Caves area 20282 | -5/Upper Caves | Attracted the attention of an 0b10 checkpoint 20282 | -5/Upper Caves | Discovered new exit (range 8) 20366 | -5/Upper Caves | Ambushed by wild Derelicts 20890 | -5/Upper Caves | Learned Factory security intel 21182 | -5/Upper Caves | Discovered new exit (range 11) 21323 | -5/Upper Caves | Entered Zhirov 21323 | -5/Zhirov | Discovered new exit (range 3) 21348 | -5/Zhirov | Met Zhirov 21383 | -5/Zhirov | Zhirov requested help retrieving the SGEMP Prototype 21404 | -5/Zhirov | Found Alien Artifact 21404 | -5/Zhirov | Identified Integrated Dissipator 21404 | -5/Zhirov | Installed Integrated Dissipator, increased core heat dissipation (+20) 21600 | -5/Zhirov | Found Alien Artifact 21639 | -5/Zhirov | Entered Proximity Caves 21677 | -4/Proximity Caves | Attracted the attention of an 0b10 checkpoint 22203 | -4/Proximity Caves | Attracted the attention of an 0b10 outpost 22799 | -4/Proximity Caves | Discovered new exit (range 15) 22866 | -4/Proximity Caves | Entered Factory 22866 | -4/Factory | Accompanied by 1 ally 22866 | -4/Factory | Evolved 2 slots: Propulsion x1, Utility x1 22868 | -4/Factory | Loaded intel: 116 trap records 22870 | -4/Factory | Loaded intel: 234 machine locations 22895 | -4/Factory | Discovered new exit (range 16) 22925 | -4/Factory | Discovered new exit (range 7) 23221 | -4/Factory | Discovered new exit (range 12) 23236 | -4/Factory | Entered Extension 23238 | -4/Extension | Loaded intel: 30 machine locations 23607 | -4/Extension | Rescued a captive Derelict 23819 | -4/Extension | Rescued a captive Derelict 23820 | -4/Extension | Rescued a captive Derelict 23825 | -4/Extension | Spotted B-86 Titan 23856 | -4/Extension | Spotted B-86 Titan 23876 | -4/Extension | Lost 3 allies 23892 | -4/Extension | Destroyed B-86 Titan 23904 | -4/Extension | Destroyed B-86 Titan 23971 | -4/Extension | Found Hvy. Reflective Plating 24203 | -4/Extension | Rescued a captive Derelict 24204 | -4/Extension | Rescued a captive Derelict 24625 | -4/Extension | Rescued A7 25325 | -4/Extension | Discovered new exit (range 10) 25326 | -4/Extension | Discovered new exit (range 6) 25351 | -4/Extension | Entered Cetus 25351 | -4/Cetus | Accompanied by 6 allies (A7) 25352 | -4/Cetus | Loaded intel: 24 machine locations 25356 | -4/Cetus | Acquired a Cetus Manufacturing Module code from A7 25378 | -4/Cetus | Spotted Cetus Guard 25378 | -4/Cetus | Spotted Cetus Guard 25380 | -4/Cetus | Spotted Cetus Guard 25382 | -4/Cetus | Destroyed Cetus Guard 25386 | -4/Cetus | Destroyed Cetus Guard 25393 | -4/Cetus | Allies destroyed Cetus Guard 25394 | -4/Cetus | Destroyed Cetus Guard 25530 | -4/Cetus | Started Cetus Manufacturing Module 25555 | -4/Cetus | Manufactured an Enhanced Grunt 25580 | -4/Cetus | Manufactured an Enhanced Grunt 25582 | -4/Cetus | Escorted A7 to Cetus Mainframe 25605 | -4/Cetus | Manufactured an Enhanced Grunt 25630 | -4/Cetus | Manufactured an Enhanced Grunt 25655 | -4/Cetus | Manufactured an Enhanced Grunt 25748 | -4/Cetus | Discovered new exit (range 16) 25782 | -4/Cetus | Spotted Cetus Guard 25782 | -4/Cetus | Spotted Cetus Guard 25783 | -4/Cetus | Spotted Cetus Guard 25783 | -4/Cetus | Spotted Cetus Guard 25786 | -4/Cetus | Destroyed Cetus Guard 25789 | -4/Cetus | Destroyed Cetus Guard 25793 | -4/Cetus | Allies destroyed Cetus Guard 25794 | -4/Cetus | Destroyed Cetus Guard 25804 | -4/Cetus | Discovered new exit (range 16) 25811 | -4/Cetus | Met Revision 17 25863 | -4/Cetus | Build established: Commander-Construct 26101 | -4/Cetus | Security sweep announced 26178 | -4/Cetus | Entered Archives 26178 | -4/Archives | Accompanied by 8 allies (A7) 26179 | -4/Archives | Loaded intel: 8 machine locations 26183 | -4/Archives | Received a hacking code to weaken MAIN.C 26233 | -4/Archives | Discovered new exit (range 16) 26316 | -4/Archives | Discovered new exit (range 16) 27600 | -4/Archives | Entered Hub_04(d) 27600 | -4/Hub_04(d) | Accompanied by 7 allies 27601 | -4/Hub_04(d) | Loaded intel: 96 machine locations 27685 | -4/Hub_04(d) | Discovered new exit (range 9) 27780 | -4/Hub_04(d) | Network Hub disabled 27782 | -4/Hub_04(d) | Spotted Lightning 27782 | -4/Hub_04(d) | Spotted Lightning 27790 | -4/Hub_04(d) | Spotted Lightning 27798 | -4/Hub_04(d) | Destroyed Lightning 27800 | -4/Hub_04(d) | Destroyed Lightning 27808 | -4/Hub_04(d) | Destroyed Lightning 27826 | -4/Hub_04(d) | Lost 5 allies 27881 | -4/Hub_04(d) | Found Prototype Device 27882 | -4/Hub_04(d) | Identified Exp. Phase Shifter 28061 | -4/Hub_04(d) | Watched by a mysterious "MATRIX" hacker 28071 | -4/Hub_04(d) | Build established: Construct 28100 | -4/Hub_04(d) | First assault squad dispatched 28116 | -4/Hub_04(d) | Entered Research 28116 | -3/Research | Evolved 2 slots: Utility x2 28117 | -3/Research | Loaded intel: 118 machine locations 28316 | -3/Research | Revision forces began assault on 0b10 28380 | -3/Research | Discovered new exit (range 8) 28402 | -3/Research | Spotted B-86 Titan 28438 | -3/Research | Entered Quarantine 28439 | -3/Quarantine | Loaded intel: 76 machine locations 28548 | -3/Quarantine | Found Alien Artifact 28639 | -3/Quarantine | Found Alien Artifact 28646 | -3/Quarantine | Found Alien Artifact 28649 | -3/Quarantine | Found Alien Artifact 28649 | -3/Quarantine | Identified Dimensional Node Initializer (x2) 28649 | -3/Quarantine | Initialized slip node 28841 | -3/Quarantine | Spotted Fortress 28957 | -3/Quarantine | Discovered new exit (range 6) 28957 | -3/Quarantine | Discovered new exit (range 7) 28966 | -3/Quarantine | Entered Protoforge 28967 | -3/Protoforge | Loaded intel: 415 machine locations 29000 | -3/Protoforge | Spotted Hotshot 29004 | -3/Protoforge | Spotted Hotshot 29005 | -3/Protoforge | Superfortress began startup sequence 29005 | -3/Protoforge | Spotted Hotshot 29007 | -3/Protoforge | Spotted Hotshot 29026 | -3/Protoforge | Destroyed Hotshot 29030 | -3/Protoforge | Destroyed Hotshot 29035 | -3/Protoforge | Destroyed Hotshot 29038 | -3/Protoforge | Spotted Hotshot 29041 | -3/Protoforge | Destroyed Hotshot 29041 | -3/Protoforge | Spotted Hotshot 29043 | -3/Protoforge | Destroyed Hotshot 29043 | -3/Protoforge | Spotted Hotshot 29049 | -3/Protoforge | Destroyed Hotshot 29051 | -3/Protoforge | Destroyed Hotshot 29051 | -3/Protoforge | Spotted Hotshot 29053 | -3/Protoforge | Spotted Hotshot 29056 | -3/Protoforge | Spotted Hotshot 29060 | -3/Protoforge | Destroyed Hotshot 29064 | -3/Protoforge | Destroyed Hotshot 29085 | -3/Protoforge | Destroyed 9 combat bots 29388 | -3/Protoforge | Discovered new exit (range 4) 29395 | -3/Protoforge | Initialized slip node 29466 | -3/Protoforge | Additional patrols dispatched to research labs 29541 | -3/Protoforge | Spotted Immortal 29550 | -3/Protoforge | Destroyed Immortal 29624 | -3/Protoforge | Spotted Decapitator 29624 | -3/Protoforge | Spotted Decapitator 29624 | -3/Protoforge | Spotted Decapitator 29624 | -3/Protoforge | Spotted Decapitator 29648 | -3/Protoforge | Identified Transdimensional Reconstructor (x2) 29648 | -3/Protoforge | Forge Plexus network access discovered 29669 | -3/Protoforge | Found Cep. Phase Shift Module 29673 | -3/Protoforge | Found Faulty Cep. Reaction Jets 29679 | -3/Protoforge | Found Faulty Cep. Phase Shift Module 29685 | -3/Protoforge | Found Cep. Reaction Jets 29696 | -3/Protoforge | Spotted Decapitator 29696 | -3/Protoforge | Spotted Decapitator 29697 | -3/Protoforge | Spotted Decapitator 29703 | -3/Protoforge | Destroyed Decapitator 29706 | -3/Protoforge | Destroyed Decapitator 29708 | -3/Protoforge | Destroyed Decapitator 29774 | -3/Protoforge | Found Crosscalibrator 29862 | -3/Protoforge | Spotted Immortal 29873 | -3/Protoforge | Spotted Immortal 29874 | -3/Protoforge | Spotted Immortal 29880 | -3/Protoforge | Destroyed Immortal 29884 | -3/Protoforge | Destroyed Immortal 29896 | -3/Protoforge | Destroyed Immortal 30044 | -3/Protoforge | Spotted Decapitator 30046 | -3/Protoforge | Destroyed Decapitator 30065 | -3/Protoforge | Spotted V120-j 30075 | -3/Protoforge | Destroyed V120-j 30425 | -3/Protoforge | Intercept squad dispatched 30425 | -3/Protoforge | Spotted Tracker 30426 | -3/Protoforge | Spotted Tracker 30427 | -3/Protoforge | Destroyed Tracker 30431 | -3/Protoforge | Destroyed Tracker 30457 | -3/Protoforge | Found Prototype Processor 30460 | -3/Protoforge | Identified Exp. Targeting Computer 30479 | -3/Protoforge | Spotted Combat Programmer 30481 | -3/Protoforge | Spotted Combat Programmer 30485 | -3/Protoforge | Destroyed Combat Programmer 30487 | -3/Protoforge | Destroyed Combat Programmer 30537 | -3/Protoforge | Spotted Immortal 30541 | -3/Protoforge | Spotted Immortal 30544 | -3/Protoforge | Destroyed Immortal 30544 | -3/Protoforge | Spotted Immortal 30553 | -3/Protoforge | Destroyed Immortal 30559 | -3/Protoforge | Destroyed Immortal 30716 | -3/Protoforge | First assault squad dispatched 30718 | -3/Protoforge | Spotted Decapitator 30724 | -3/Protoforge | Destroyed Decapitator 30726 | -3/Protoforge | Spotted Decapitator 30727 | -3/Protoforge | Destroyed Decapitator 30731 | -3/Protoforge | Spotted Decapitator 30732 | -3/Protoforge | Destroyed Decapitator 30735 | -3/Protoforge | Spotted Decapitator 30737 | -3/Protoforge | Destroyed Decapitator 30757 | -3/Protoforge | Build established: Scavenger-Construct 30762 | -3/Protoforge | System corruption reached 10% 30775 | -3/Protoforge | Found Cep. Antigrav Storage Unit 30783 | -3/Protoforge | Found Cep. Matter Streamer 30799 | -3/Protoforge | Found Cep. NT7 Matterbank 30834 | -3/Protoforge | Found Cep. Chromion Battery 30837 | -3/Protoforge | Found Cep. Chromion Battery 30970 | -3/Protoforge | Spotted Immortal 30970 | -3/Protoforge | Spotted Immortal 30988 | -3/Protoforge | Destroyed Immortal 30995 | -3/Protoforge | Destroyed Immortal 31010 | -3/Protoforge | Spotted V536-p 31015 | -3/Protoforge | Destroyed V536-p 31021 | -3/Protoforge | Found Mni. Quantum Capacitor 31024 | -3/Protoforge | Found Cep. Networked Targeting System 31033 | -3/Protoforge | Found Cep. Networked Targeting System 31038 | -3/Protoforge | Found Exp. Kinecellerator 31223 | -3/Protoforge | Spotted AP7-3 31227 | -3/Protoforge | Destroyed AP7-3 31231 | -3/Protoforge | Destroyed AP7-3 31274 | -3/Protoforge | Found Prototype Device 31274 | -3/Protoforge | Identified Exp. ECM Suite 31288 | -3/Protoforge | Found Cep. Core Analysis Suite 31293 | -3/Protoforge | Found Cep. Thermoelectric Network 31300 | -3/Protoforge | Found Cep. Impact Drone Bay 31334 | -3/Protoforge | Build established: Construct 31480 | -3/Protoforge | Destroyed 9 combat bots 31641 | -3/Protoforge | Intercept squad dispatched 31670 | -3/Protoforge | Spotted Tracker 31670 | -3/Protoforge | Destroyed Tracker 31671 | -3/Protoforge | Spotted Tracker 31672 | -3/Protoforge | Destroyed Tracker 31678 | -3/Protoforge | Spotted Combat Programmer 31679 | -3/Protoforge | Spotted Combat Programmer 31680 | -3/Protoforge | Destroyed Combat Programmer 31691 | -3/Protoforge | Destroyed Combat Programmer 31716 | -3/Protoforge | Found Exp. Phase Shifter 31742 | -3/Protoforge | Build established: Scavenger-Construct 31941 | -3/Protoforge | Found Prototype Energy Cannon 31976 | -3/Protoforge | Garrison activated, responded to threat 32010 | -3/Protoforge | Destroyed 7 combat bots 32051 | -3/Protoforge | Spotted Immortal 32053 | -3/Protoforge | Warped through subspace to slip node 32129 | -3/Protoforge | Found Exp. Remote Shield 32222 | -3/Protoforge | Build established: Construct 32301 | -3/Protoforge | Destroyed Decapitator 32301 | -3/Protoforge | Destroyed Decapitator 32307 | -3/Protoforge | Destroyed Decapitator 32355 | -3/Protoforge | Spotted V842-b 32356 | -3/Protoforge | Destroyed V842-b 32360 | -3/Protoforge | Found Centrium Heavy Armor Plating 32363 | -3/Protoforge | Found Faulty Cep. Arcsight Missile Launcher 32377 | -3/Protoforge | Found Cep. Arcsight Missile Launcher 32459 | -3/Protoforge | Spotted V850-u 32459 | -3/Protoforge | Destroyed V850-u 32459 | -3/Protoforge | Destroyed V097-y 32459 | -3/Protoforge | Destroyed V004-o 32461 | -3/Protoforge | Destroyed V369-w 32478 | -3/Protoforge | Garrison activated, responded to threat 32507 | -3/Protoforge | Destroyed 13 combat bots 32539 | -3/Protoforge | Found Prototype Ballistic Gun 32539 | -3/Protoforge | Identified Multirail 32545 | -3/Protoforge | Found Prototype Energy Gun 32545 | -3/Protoforge | Identified Enh. Gamma Rifle 32564 | -3/Protoforge | Intercept squad dispatched 32570 | -3/Protoforge | Spotted Tracker 32571 | -3/Protoforge | Spotted Tracker 32572 | -3/Protoforge | Destroyed Tracker 32574 | -3/Protoforge | Destroyed Tracker 32578 | -3/Protoforge | Spotted Combat Programmer 32587 | -3/Protoforge | Destroyed Combat Programmer 32615 | -3/Protoforge | Found Centrium Heavy Armor Plating 32637 | -3/Protoforge | Spotted Combat Programmer 32637 | -3/Protoforge | Destroyed Combat Programmer 32708 | -3/Protoforge | Destroyed 11 combat bots 32908 | -3/Protoforge | Intercept squad dispatched 32937 | -3/Protoforge | Destroyed 18 combat bots 32941 | -3/Protoforge | Spotted Tracker 32942 | -3/Protoforge | Spotted Tracker 32945 | -3/Protoforge | Warped through subspace to slip node 32949 | -3/Protoforge | Spotted Combat Programmer 32970 | -3/Protoforge | Spotted Immortal 32970 | -3/Protoforge | Entered Research 32970 | -2/Research | Evolved 2 slots: Power x1, Utility x1 32971 | -2/Research | Loaded intel: 101 machine locations 33025 | -2/Research | High security lockdown imminent 33105 | -2/Research | High security lockdown engaged 33342 | -2/Research | Build established: Scavenger-Construct 33343 | -2/Research | Destroyed 14 combat bots 33349 | -2/Research | Spotted Investigator 33353 | -2/Research | Scanned by Researcher 33355 | -2/Research | Destroyed Investigator 33490 | -2/Research | Destroyed Executioner 33512 | -2/Research | Destroyed 21 combat bots 33622 | -2/Research | Spotted Striker 33624 | -2/Research | Spotted Striker 33626 | -2/Research | Destroyed Executioner 33629 | -2/Research | Destroyed Striker 33630 | -2/Research | Destroyed Striker 33634 | -2/Research | Destroyed Striker 33650 | -2/Research | Crushed by falling debris 33682 | -2/Research | Destroyed 16 combat bots 33702 | -2/Research | Spotted Investigator 33703 | -2/Research | Destroyed Investigator 33705 | -2/Research | Destroyed Striker 33711 | -2/Research | Destroyed Striker 33745 | -2/Research | Destroyed 21 combat bots 33893 | -2/Research | Spotted Striker 33893 | -2/Research | Spotted Striker 33897 | -2/Research | Spotted Striker 33903 | -2/Research | Destroyed Striker 33903 | -2/Research | Destroyed Striker 33906 | -2/Research | Destroyed Striker 33960 | -2/Research | Destroyed 24 combat bots 33992 | -2/Research | Sterilization system engaged 33992 | -2/Research | Non-combat units ordered to evacuate 34013 | -2/Research | Destroyed 13 combat bots 34092 | -2/Research | Combat units ordered to evacuate 34137 | -2/Research | Build established: Construct 34240 | -2/Research | Discovered new exit (range 3) 34292 | -2/Research | Ambient heat levels rising (+10) 34442 | -2/Research | Ambient heat levels rising (+10) 34550 | -2/Research | Entered Testing 34551 | -2/Testing | Loaded intel: 67 machine locations 34695 | -2/Testing | Found Exp. System Shield 34734 | -2/Testing | Found Prototype Ballistic Gun 34734 | -2/Testing | Identified Hyp. Multirail 34763 | -2/Testing | Spotted Striker 34779 | -2/Testing | Spotted Striker 34782 | -2/Testing | Destroyed Striker 34783 | -2/Testing | Destroyed Striker 34800 | -2/Testing | First assault squad dispatched 34813 | -2/Testing | Spotted Alpha 7 34815 | -2/Testing | Destroyed Alpha 7 34829 | -2/Testing | Stole the SGEMP Prototype 34965 | -2/Testing | Destroyed 15 combat bots 35139 | -2/Testing | Destroyed 9 combat bots 35209 | -2/Testing | Unchained authorized (6S-H0T) 35286 | -2/Testing | Discovered new exit (range 15) 35328 | -2/Testing | Found Prototype Protection 35329 | -2/Testing | Identified SHELL Armor 35389 | -2/Testing | High security lockdown imminent 35407 | -2/Testing | Entered Access 35407 | -1/Access | Evolved 2 slots: Power x1, Weapon x1 35408 | -1/Access | Loaded intel: 111 machine locations 35409 | -1/Access | Loaded intel: 111 machine locations 35409 | -1/Access | Loaded intel: 83 trap records 35409 | -1/Access | Identified exit to Surface 35409 | -1/Access | Discovered exit to Surface (range 119) 35409 | -1/Access | Identified exit to Command 35409 | -1/Access | Discovered exit to Command (range 94) 35409 | -1/Access | Delivered the SGEMP Prototype to Zhirov 35409 | -1/Access | Zhirov transferred Access data 35657 | -1/Access | First assault squad dispatched 35681 | -1/Access | Build established: Generator-Construct 36067 | -1/Access | Entered Command 36067 | -1/Command | Accompanied by 3 allies (incl. Zhirov, Perun, Svarog) 36068 | -1/Command | Loaded intel: 65 machine locations 36071 | -1/Command | Zhirov warped through subspace 36195 | -1/Command | Spotted Combat Programmer 36259 | -1/Command | Met MAIN.C 36272 | -1/Command | Destroyed MAIN.C Shell 36273 | -1/Command | MAIN.C activated Command garrisons 36278 | -1/Command | 0b10 Conduit disabled 36278 | -1/Command | Zhirov arrived to use SGEMP to disable MAIN.C 36298 | -1/Command | Identified Subatomic Replicator 36298 | -1/Command | Discovered exit to Surface (range 45) 36298 | -1/Command | Discovered exit to Surface (range 88) 36298 | -1/Command | Extracted map data and part IDs from MAIN.C's data core 36424 | -1/Command | Found Exp. System Purifier 37321 | -1/Command | Used Subatomic Replicator to replicate Imp. Potential Cannon 37545 | -1/Command | Found Adv. Particle Accelerator 39027 | -1/Command | Found Gamma Bomb Array 39131 | -1/Command | Found Corrupted AEGIS Remote Shield 39446 | -1/Command | Found Corrupted Exp. Core Analyzer 39456 | -1/Command | Found Corrupted Exp. Core Analyzer 39735 | -1/Command | Found Corrupted Cld. Nova Cannon 39746 | -1/Command | Found Corrupted Zero-point Reactor 39747 | -1/Command | Found Corrupted Zero-point Reactor 39751 | -1/Command | Found Corrupted Zero-point Reactor 39902 | -1/Command | System corruption reached 10% 41098 | -1/Command | Crushed by falling debris 41853 | -1/Command | Found Multirail 42118 | -1/Command | Crushed by falling debris 42404 | -1/Command | Crushed by falling debris 42832 | -1/Command | Crushed by falling debris 43119 | -1/Command | All MAIN.C guards destroyed 43238 | -1/Command | Crushed by falling debris 44935 | *** | Escaped! Last Messages --------------- (9%). Exp. System Purifier purges 1% system corruption (8%). Exp. System Purifier purges 1% system corruption (7%). Exp. System Purifier purges 1% system corruption (6%). Exp. System Purifier purges 1% system corruption (5%). Exp. System Purifier purges 1% system corruption (4%). Exp. System Purifier purges 1% system corruption (3%). Exp. System Purifier purges 1% system corruption (2%). Exp. System Purifier purges 1% system corruption (1%). Exp. System Purifier purges 1% system corruption (0%). [Achievement: Force of Scrap] Map ----- +----------------------------------------------------+ | ???# ############# #??????? | | #### # """" ########+###########??????? | | # ""R"" + #???????????????? | | # "" "" ###### #???????????????? | | # #????# ##############??? | | ]] # #????# # """T""" #??? | | # ] # ! #????# # """ """ #??? | | # # #????# # #??? | | # ###+############# # #??? | | # + "" #??? | | # # """" #??? | | # + """" #??? | | # "" #^ "" #??? | | #! """" #################### # #??? | | # """" ##############?????# # #??? | | # "" # #?????# # #??? | | # # #?????# # #??? | | # # ! ! #?????# ###+##########??? | | # # #?????# #?# #???????????? | | # "" + #?????# #?# #???????????? | | # """ ##+###########????##+###+#######?????? | | # "T #??????????????# #?????? | | # """ ####???????????# #?????? | | "" #????######?# "" #?????? | | #????# #?# "" #?????? | | #????# @ #?# """" "" #?????? | | [ #????# #?# """" Y" #?????? | | #####"% ####"#######???### #?# """" "" #?????? | | ????#"! #?##"##### ####### #?# """"%["" #?????? | | ????#####?#" !!! ! ## #?# [ "" #?????? | | ??????????## !! ## #?# #?????? | | ############ !! ## #?# [ #?????? | | # ## #?# [% #????## | | + ## ###########+####????#? | | # """ # ######### #?????#? | | # """ + !! #?????#? | | # R" #!%!! #?????#? | | # """% #! ! ;####### #?????#? | | "" # "" = #######?????# #?????#? | | """" # #???????????# #?????#? | | """" # #???????????# #?????#? | | "" #####+##+#####???????????# #?????#? | | #???# ## #???????????????# #?????#? | | #???# ## #???????????????# #?????#? | | ############???# ## #???????????????# #?????#? | | ?#""""""# #???# ## #???????????????# #?????#? | | ?#""" + #???# ## #???????????????# #?????#? | | ?#"" + #???# ## #???????????????#^^^^^#?????#? | | ?#""" + #???# ## #???????????????# #?????#? | | ?#""""""# #???# ## #???????????????# ######## | +----------------------------------------------------+ Best States ------------- Heat Dissipation 146 Energy Generation 114 Energy Capacity 2272 Matter Stores 300 Matter Capacity 300 Sight Range 22 Terrain Scan Range 20 Terrain Scan Density 10 Jamming Range 14 Base Temperature (-) 200 Armor Coverage 900 Resistance: TH 30 Weapon Shielding 90 Weapon Cycling 20 Phase Shifting 25 Evasion (%) 80 Targeting Accuracy 12 Core Analysis 11 Recoil Reduction 5 Particle Charging 50 Kinecelleration 66 Offensive Hacking 10 Authchip Count 1 Item Schematics ----------------- Huge Storage Unit | -10/Materials | Hacked Med. Reflective Plating | -9/Storage | Hacked Adv. Myomer Leg | -3/Protoforge | Archive Exp. Thermal Shield | -3/Protoforge | Archive Hvy. Dispersion Rifle | -3/Protoforge | Archive Hvy. Antimatter Reactor | -3/Protoforge | Archive Enh. Biometal Leg | -3/Protoforge | Archive Exp. Terrain Scan Processor | -3/Protoforge | Archive Hds. Centrium Wheel | -3/Protoforge | Archive Proton Burst Cannon | -2/Testing | Archive Exp. Hacking Suite | -2/Testing | Archive Hvy. Wave Gun | -2/Testing | Archive Imp. Diametric Drive | -2/Testing | Archive Robot Schematics ------------------ M-13 Machinist | -9/Materials | Hacked A-02 Transporter | -3/Protoforge | Archive O-32 Director | -3/Protoforge | Archive K-01 Serf | -3/Protoforge | Archive R-06 Scavenger | -2/Testing | Archive H-88 Terminator | -2/Testing | Archive B-74 Champion | -2/Testing | Archive Fabricated ------------ Lrn. Tractor Beam | x2 | -7/Factory | Preloaded Repaired ---------- Lgt. Treads | 1% | -10/Materials Lgt. Treads | 52% | -9/Materials Studied --------- Hvy. Assault Rifle | -9/Materials | Hacked Lgt. Treads | -9/Materials | Hacked Grenade Launcher | -9/Materials | Hacked Imp. Treads | -9/Materials | Hacked Beam Rifle | -9/Materials | Hacked Rocket Launcher | -9/Materials | Hacked Alien Tech Used ----------------- Integrated Dissipator Dimensional Node Initializer Transdimensional Reconstructor Subatomic Replicator Achievements -------------- Cannon Specialist Force of Scrap Incoming! Monstrosity Sorry Old Pal Stay Cool Under Fire Challenges ------------ None Game ------ Seed FrostCoreSlayer Manual? 0 Play Time 08:18:54 Cumulative 570.0 hours Start 2026.08.17 @ 23:07:36 End 2026.08.22 @ 18:42:02 Sessions 11 Manual Loads 0 Difficulty Rogue Special Mode None Game No. 319 Rogue 319 Adventurer 0 Explorer 0 Win Type 0 Total 37 Types 18/2/7/2/1/1/1/2/1/2 Lore% 97 Gallery% 92 Achievement% 87 Wizard Run 0 Options --------- Layout 1 ASCII 0 Keyboard 0 Movement Numpad Keybinds 0 Fullscreen 1 Font 24/Proggy Map View 50x35 Zoom Use 0% Tactical HUD 0 Map Filters NONE Filters NONE Steam 1 RUN: 6b33630e-5cdf-4481-b133-b50811dbad64